Publisher Label,Publisher URI,"Supplier","Net Amount £","Organisational Unit","Merchant Category Code","Purpose","Payment Date"
"Wolverhampton City Council","http://opendatacommunities.org/id/metropolitan-district-council/wolverhampton","TVLICENSING.CO.UK","150.50","LAC Transitions Team","7392","Client Allowances","31/05/2018"
"Wolverhampton City Council","http://opendatacommunities.org/id/metropolitan-district-council/wolverhampton","HERON FOODS LTD","16.74","Ernest Bold Court","5499","Catering","31/05/2018"
"Wolverhampton City Council","http://opendatacommunities.org/id/metropolitan-district-council/wolverhampton","SAINSBURYS 2040","18.24","Ernest Bold Court","5411","Provisions (Not for resale)","31/05/2018"
"Wolverhampton City Council","http://opendatacommunities.org/id/metropolitan-district-council/wolverhampton","Virgin Trains","57.00","Members Expenses","4112","Public Transport","31/05/2018"
"Wolverhampton City Council","http://opendatacommunities.org/id/metropolitan-district-council/wolverhampton","Virgin Trains","196.00","Environmental Health - Pub Prot - Gen","4112","Services - Fees and Charges","31/05/2018"
"Wolverhampton City Council","http://opendatacommunities.org/id/metropolitan-district-council/wolverhampton","SAINSBURYS (2340)","23.99","Civic Centre Catering","5411","Provisions (Not for resale)","31/05/2018"
"Wolverhampton City Council","http://opendatacommunities.org/id/metropolitan-district-council/wolverhampton","Amazon EU","126.63","Licensing - General","5969","Equipment - Purchase","31/05/2018"
"Wolverhampton City Council","http://opendatacommunities.org/id/metropolitan-district-council/wolverhampton","Trainline","255.40","CIN/CP Social Work Unit - Area 8","4112","Public Transport","31/05/2018"
"Wolverhampton City Council","http://opendatacommunities.org/id/metropolitan-district-council/wolverhampton","Amazon UK Marketplace","53.35","Parks - Ranger Service","5942","Equipment - Purchase","31/05/2018"
"Wolverhampton City Council","http://opendatacommunities.org/id/metropolitan-district-council/wolverhampton","GO CARZ","25.00","EIP Locality 5","4121","Client Transport","31/05/2018"
"Wolverhampton City Council","http://opendatacommunities.org/id/metropolitan-district-council/wolverhampton","GRO HM PASSPORT OFFICE","-19.50","LAC Transitions Team","9399","Client Allowances","31/05/2018"
"Wolverhampton City Council","http://opendatacommunities.org/id/metropolitan-district-council/wolverhampton","ARGOS DIRECT","-3.95","CIN/CP Social Work Unit - Area 3","5310","Equipment - Purchase","31/05/2018"
"Wolverhampton City Council","http://opendatacommunities.org/id/metropolitan-district-council/wolverhampton","AMAZON SVCS EU-UK AMAZ","37.38","Strategic ICTS (ICT Serv Budget)","5942","Books","31/05/2018"
"Wolverhampton City Council","http://opendatacommunities.org/id/metropolitan-district-council/wolverhampton","Amazon UK Marketplace","144.14","Strategic ICTS (ICT Serv Budget)","5942","Computing - Purchase of Hardware","31/05/2018"
"Wolverhampton City Council","http://opendatacommunities.org/id/metropolitan-district-council/wolverhampton","Trainline","-239.00","LAC Transitions Team","4112","Client Allowances","31/05/2018"
"Wolverhampton City Council","http://opendatacommunities.org/id/metropolitan-district-council/wolverhampton","Trainline","255.40","LAC Transitions Team","4112","Client Allowances","31/05/2018"
"Wolverhampton City Council","http://opendatacommunities.org/id/metropolitan-district-council/wolverhampton","Trainline","240.50","LAC Transitions Team","4112","Client Allowances","31/05/2018"
"Wolverhampton City Council","http://opendatacommunities.org/id/metropolitan-district-council/wolverhampton","LUL TICKET MACHINE","15.00","Research & Development","4112","Public Transport","31/05/2018"
"Wolverhampton City Council","http://opendatacommunities.org/id/metropolitan-district-council/wolverhampton","SCREWFIX DIRECT","9.16","Telecare","5211","Equipment - Purchase","31/05/2018"
"Wolverhampton City Council","http://opendatacommunities.org/id/metropolitan-district-council/wolverhampton","E01510300000000","200.00","MASH","6011","Section 17","31/05/2018"
"Wolverhampton City Council","http://opendatacommunities.org/id/metropolitan-district-council/wolverhampton","Trainline","19.45","SEN Special Education Admin","4112","Public Transport","31/05/2018"
"Wolverhampton City Council","http://opendatacommunities.org/id/metropolitan-district-council/wolverhampton","WIX.COM","93.13","Technical Support","5968","Subscriptions","31/05/2018"
"Wolverhampton City Council","http://opendatacommunities.org/id/metropolitan-district-council/wolverhampton","RAPID ELECTRONICS","132.00","Technical Support","5732","Equipment - Purchase","31/05/2018"
"Wolverhampton City Council","http://opendatacommunities.org/id/metropolitan-district-council/wolverhampton","Weebly","11.70","Technical Support","5817","Computing - Purchase of Software","31/05/2018"
"Wolverhampton City Council","http://opendatacommunities.org/id/metropolitan-district-council/wolverhampton","WILKO RETAIL LIMIT","3.25","Technician","5722","R4007","31/05/2018"
"Wolverhampton City Council","http://opendatacommunities.org/id/metropolitan-district-council/wolverhampton","LOYD 37 CHURCH STREET","40.00","EIP Locality 8","6011","Grant Payments","31/05/2018"
"Wolverhampton City Council","http://opendatacommunities.org/id/metropolitan-district-council/wolverhampton","000002200500000","240.00","Childrens with Disabilities Team","6011","Financial Assistance In Exceptional Circ","31/05/2018"
"Wolverhampton City Council","http://opendatacommunities.org/id/metropolitan-district-council/wolverhampton","POST OFFICE COUNTER","134.00","Adoption and Residence Team & Allowances","9402","Comms - Postage","31/05/2018"
"Wolverhampton City Council","http://opendatacommunities.org/id/metropolitan-district-council/wolverhampton","WWW.TONERGIANT.CO.UK","126.23","Headstart Hubs","5943","Stationery","31/05/2018"
"Wolverhampton City Council","http://opendatacommunities.org/id/metropolitan-district-council/wolverhampton","WWW.WMCA.CO.UK","56.50","IMPACT","9399","Services - Fees and Charges","31/05/2018"
"Wolverhampton City Council","http://opendatacommunities.org/id/metropolitan-district-council/wolverhampton","Trainline","57.70","LAC Transitions Team","4112","Client Allowances","31/05/2018"
"Wolverhampton City Council","http://opendatacommunities.org/id/metropolitan-district-council/wolverhampton","BLOXWICH  SST","7.20","Economic Development","4112","Public Transport","30/05/2018"
"Wolverhampton City Council","http://opendatacommunities.org/id/metropolitan-district-council/wolverhampton","WM MORRISON 024","8.62","Ernest Bold Court","5411","Provisions (Not for resale)","30/05/2018"
"Wolverhampton City Council","http://opendatacommunities.org/id/metropolitan-district-council/wolverhampton","CREATIVE FRAMING","86.46","Mayoral Expenses","5971","Services - Professional Fees","30/05/2018"
"Wolverhampton City Council","http://opendatacommunities.org/id/metropolitan-district-council/wolverhampton","VERY","268.32","LAC Transitions Team","5964","Client Allowances","30/05/2018"
"Wolverhampton City Council","http://opendatacommunities.org/id/metropolitan-district-council/wolverhampton","AMAZON SVCS EU-UK AMAZ","27.07","Central Baths","5942","Equipment - Purchase","30/05/2018"
"Wolverhampton City Council","http://opendatacommunities.org/id/metropolitan-district-council/wolverhampton","ARGOS RETAIL GROUP","78.97","EIP Locality 1","5310","Equipment - Purchase","30/05/2018"
"Wolverhampton City Council","http://opendatacommunities.org/id/metropolitan-district-council/wolverhampton","Amazon UK Marketplace","62.49","Learning Disabilities Management","5942","Equipment - Purchase","30/05/2018"
"Wolverhampton City Council","http://opendatacommunities.org/id/metropolitan-district-council/wolverhampton","WWW.ARGOS.CO.UK","86.62","LAC Transitions Team","5310","Client Allowances","30/05/2018"
"Wolverhampton City Council","http://opendatacommunities.org/id/metropolitan-district-council/wolverhampton","PAYPAL  SLF24 LTD.","331.67","LAC Transitions Team","5712","Client Allowances","30/05/2018"
"Wolverhampton City Council","http://opendatacommunities.org/id/metropolitan-district-council/wolverhampton","THE PAVILION","18.62","Safeguarding Partnership Board","8641","Educ Trips, Holidays, Outings, Activity","30/05/2018"
"Wolverhampton City Council","http://opendatacommunities.org/id/metropolitan-district-council/wolverhampton","THE PAVILION","250.00","Safeguarding Partnership Board","8641","Training Expenses","30/05/2018"
"Wolverhampton City Council","http://opendatacommunities.org/id/metropolitan-district-council/wolverhampton","WWW.HINDLEYS.COM","16.48","Melanie Tomlinson","5072","R4007","30/05/2018"
"Wolverhampton City Council","http://opendatacommunities.org/id/metropolitan-district-council/wolverhampton","MAKITAUK.COM","310.00","Technician","5251","Training Expenses","30/05/2018"
"Wolverhampton City Council","http://opendatacommunities.org/id/metropolitan-district-council/wolverhampton","WWW.MACMILLAN.ORG","560.00","Merchandising for Wolves - in - Wolves","8398","TPP - Payments to voluntary groups","30/05/2018"
"Wolverhampton City Council","http://opendatacommunities.org/id/metropolitan-district-council/wolverhampton","THE NEW BRIDGE GUEST H","50.00","Emergency Duty Team","7011","Services - Supplies & Services to users","30/05/2018"
"Wolverhampton City Council","http://opendatacommunities.org/id/metropolitan-district-council/wolverhampton","POST OFFICE COUNTER","11.00","Adoption and Residence Team & Allowances","9402","Comms - Postage","30/05/2018"
"Wolverhampton City Council","http://opendatacommunities.org/id/metropolitan-district-council/wolverhampton","Amazon UK Marketplace","8.45","Adoption and Residence Team & Allowances","5942","Stationery","30/05/2018"
"Wolverhampton City Council","http://opendatacommunities.org/id/metropolitan-district-council/wolverhampton","DECATHLON","21.97","Upper Pendeford Farm Childrens Home","5941","Equipment - Purchase","30/05/2018"
"Wolverhampton City Council","http://opendatacommunities.org/id/metropolitan-district-council/wolverhampton","WWW.WMCA.CO.UK","35.50","CIN/CP Social Work Unit - Area 5","9399","Section 17","30/05/2018"
"Wolverhampton City Council","http://opendatacommunities.org/id/metropolitan-district-council/wolverhampton","000002200500000","250.00","CIN/CP Social Work Unit - Area 6","6011","Financial Assistance In Exceptional Circ","30/05/2018"
"Wolverhampton City Council","http://opendatacommunities.org/id/metropolitan-district-council/wolverhampton","ITUNES.COM/BILL","0.79","Strategic ICTS (ICT Serv Budget)","5735","Computing - Purchase of Software","29/05/2018"
"Wolverhampton City Council","http://opendatacommunities.org/id/metropolitan-district-council/wolverhampton","AMAZON SVCS EU-UK AMAZ","48.32","Central Baths","5942","Equipment - Purchase","29/05/2018"
"Wolverhampton City Council","http://opendatacommunities.org/id/metropolitan-district-council/wolverhampton","Amazon UK Marketplace","17.41","Parks - Ranger Service","5942","Equipment - Purchase","29/05/2018"
"Wolverhampton City Council","http://opendatacommunities.org/id/metropolitan-district-council/wolverhampton","TVLICENSING.CO.UK","150.50","Strategic ICTS (ICT Serv Budget)","7392","R4535","29/05/2018"
"Wolverhampton City Council","http://opendatacommunities.org/id/metropolitan-district-council/wolverhampton","RYANAIR","108.38","AES Staff Development","3246","Public Transport","29/05/2018"
"Wolverhampton City Council","http://opendatacommunities.org/id/metropolitan-district-council/wolverhampton","Amazon EU","37.42","LAC Team","5969","Stationery","29/05/2018"
"Wolverhampton City Council","http://opendatacommunities.org/id/metropolitan-district-council/wolverhampton","NETFLIX.COM","5.99","Technician","4899","Comms - Telephone Rental","28/05/2018"
"Wolverhampton City Council","http://opendatacommunities.org/id/metropolitan-district-council/wolverhampton","POST OFFICE COUNTER","10.83","LAC Transitions Team","9402","Client Allowances","28/05/2018"
"Wolverhampton City Council","http://opendatacommunities.org/id/metropolitan-district-council/wolverhampton","REGISTRARS OFFICE","40.00","Adoption and Residence Team & Allowances","8299","Services - Fees and Charges","28/05/2018"
"Wolverhampton City Council","http://opendatacommunities.org/id/metropolitan-district-council/wolverhampton","AMAZON SVCS EU-UK AMAZ","20.00","Strategic ICTS (ICT Serv Budget)","5942","Computing - Purchase of Hardware","28/05/2018"
"Wolverhampton City Council","http://opendatacommunities.org/id/metropolitan-district-council/wolverhampton","SPORTSDIRECT.COM","46.66","Central Baths","5941","Equipment - Purchase","28/05/2018"
"Wolverhampton City Council","http://opendatacommunities.org/id/metropolitan-district-council/wolverhampton","AMAZON SVCS EU-UK AMAZ","15.41","Central Baths","5942","Books","28/05/2018"
"Wolverhampton City Council","http://opendatacommunities.org/id/metropolitan-district-council/wolverhampton","ASDA GROCERIES ONLINE","-2.59","Upper Pendeford Farm Childrens Home","5411","Provisions (Not for resale)","28/05/2018"
"Wolverhampton City Council","http://opendatacommunities.org/id/metropolitan-district-council/wolverhampton","ASDA GROCERIES ONLINE","234.77","Upper Pendeford Farm Childrens Home","5411","Provisions (Not for resale)","28/05/2018"
"Wolverhampton City Council","http://opendatacommunities.org/id/metropolitan-district-council/wolverhampton","WWW.COFFEESUPPLIESDIRE","47.66","Archives","5331","Materials for resale","28/05/2018"
"Wolverhampton City Council","http://opendatacommunities.org/id/metropolitan-district-council/wolverhampton","WWW.GOV.UK","20.00","Revenues","8999","Services - Professional Fees","28/05/2018"
"Wolverhampton City Council","http://opendatacommunities.org/id/metropolitan-district-council/wolverhampton","WWW.GOV.UK","10.00","Revenues","8999","Services - Professional Fees","28/05/2018"
"Wolverhampton City Council","http://opendatacommunities.org/id/metropolitan-district-council/wolverhampton","SAINSBURYS","200.00","Duke Street Bungalows","6011","Provisions (Not for resale)","28/05/2018"
"Wolverhampton City Council","http://opendatacommunities.org/id/metropolitan-district-council/wolverhampton","SAINSBURYS SACAT 2040","22.22","Duke Street Bungalows","5411","Provisions (Not for resale)","28/05/2018"
"Wolverhampton City Council","http://opendatacommunities.org/id/metropolitan-district-council/wolverhampton","ASDA SUPERSTORE","26.73","Queen St Townscape Heritage (HLF)","5411","Hospitality","28/05/2018"
"Wolverhampton City Council","http://opendatacommunities.org/id/metropolitan-district-council/wolverhampton","PREMIER INN","178.00","Emergency Duty Team","3811","Services - Supplies & Services to users","28/05/2018"
"Wolverhampton City Council","http://opendatacommunities.org/id/metropolitan-district-council/wolverhampton","THE NEW BRIDGE GUEST H","150.00","Emergency Duty Team","7011","Services - Supplies & Services to users","28/05/2018"
"Wolverhampton City Council","http://opendatacommunities.org/id/metropolitan-district-council/wolverhampton","TRAVELODGE","220.00","Emergency Duty Team","3615","Services - Supplies & Services to users","28/05/2018"
"Wolverhampton City Council","http://opendatacommunities.org/id/metropolitan-district-council/wolverhampton","GIBSON'S","38.28","Towers Outdoor Education Centre","5999","Equipment - Purchase","28/05/2018"
"Wolverhampton City Council","http://opendatacommunities.org/id/metropolitan-district-council/wolverhampton","ASDA SUPERSTORE","33.27","Queen St Townscape Heritage (HLF)","5411","Hospitality","28/05/2018"
"Wolverhampton City Council","http://opendatacommunities.org/id/metropolitan-district-council/wolverhampton","BLOXWICH  SST","7.20","Economic Development","4112","Public Transport","28/05/2018"
"Wolverhampton City Council","http://opendatacommunities.org/id/metropolitan-district-council/wolverhampton","CARVER/WOLVERHAMPTON/L","31.25","Ground Maintenance East","5211","Materials","28/05/2018"
"Wolverhampton City Council","http://opendatacommunities.org/id/metropolitan-district-council/wolverhampton","GOOGLE  ADWS9680351324","500.00","Communications & Marketing - General","5968","Subscriptions","28/05/2018"
"Wolverhampton City Council","http://opendatacommunities.org/id/metropolitan-district-council/wolverhampton","AMAZON SVCS EU-UK AMAZ","18.97","LAC Education Team (LACE)","5942","Computing - Purchase of Hardware","28/05/2018"
"Wolverhampton City Council","http://opendatacommunities.org/id/metropolitan-district-council/wolverhampton","ARGOS DIRECT","39.99","EIP Locality 6","5310","Grant Payments","28/05/2018"
"Wolverhampton City Council","http://opendatacommunities.org/id/metropolitan-district-council/wolverhampton","ARGOS DIRECT","166.66","EIP Locality 6","5310","Grant Payments","28/05/2018"
"Wolverhampton City Council","http://opendatacommunities.org/id/metropolitan-district-council/wolverhampton","SAINSBURYS SACAT 2040","22.50","Duke Street Bungalows","5411","Equipment - Purchase","28/05/2018"
"Wolverhampton City Council","http://opendatacommunities.org/id/metropolitan-district-council/wolverhampton","PAYPAL  PRACTICE EN","109.00","Central Training","7299","Training Expenses","28/05/2018"
"Wolverhampton City Council","http://opendatacommunities.org/id/metropolitan-district-council/wolverhampton","B&M RETAIL","11.92","Upper Pendeford Farm Childrens Home","5310","Equipment - Purchase","28/05/2018"
"Wolverhampton City Council","http://opendatacommunities.org/id/metropolitan-district-council/wolverhampton","1CLICKPRINT","83.26","Community Enablement","7221","Publications","28/05/2018"
"Wolverhampton City Council","http://opendatacommunities.org/id/metropolitan-district-council/wolverhampton","ASDA SUPERSTORE","20.46","EIP Locality 5","5411","Grant Payments","28/05/2018"
"Wolverhampton City Council","http://opendatacommunities.org/id/metropolitan-district-council/wolverhampton","GRO HM PASSPORT OFFICE","19.50","LAC Transitions Team","9399","Client Allowances","28/05/2018"
"Wolverhampton City Council","http://opendatacommunities.org/id/metropolitan-district-council/wolverhampton","PAYPAL  4OURHOUSE","11.50","Northicote Farm","5331","Equipment - Purchase","28/05/2018"
"Wolverhampton City Council","http://opendatacommunities.org/id/metropolitan-district-council/wolverhampton","SAINSBURYS (2340)","10.00","Northicote Farm","5411","Equipment - Purchase","28/05/2018"
"Wolverhampton City Council","http://opendatacommunities.org/id/metropolitan-district-council/wolverhampton","WWW.WASHINGNET.CO.UK","58.43","Towers Outdoor Education Centre","7399","Equipment - Purchase","25/05/2018"
"Wolverhampton City Council","http://opendatacommunities.org/id/metropolitan-district-council/wolverhampton","Virgin Trains","202.00","Fostering Team & Allowances","4112","Public Transport","25/05/2018"
"Wolverhampton City Council","http://opendatacommunities.org/id/metropolitan-district-council/wolverhampton","Amazon UK Marketplace","72.99","WV Active Marketing","5942","Books","25/05/2018"
"Wolverhampton City Council","http://opendatacommunities.org/id/metropolitan-district-council/wolverhampton","Amazon UK Marketplace","133.32","Mental Health Assessment & Care Mgmt","5942","Equipment - Health and Safety","25/05/2018"
"Wolverhampton City Council","http://opendatacommunities.org/id/metropolitan-district-council/wolverhampton","WISEPOPS","6.26","City Direct","7372","Computing - Purchase of Software","25/05/2018"
"Wolverhampton City Council","http://opendatacommunities.org/id/metropolitan-district-council/wolverhampton","SAINSBURYS PFS (1340)","1.67","Mayoral Expenses","5541","Vehicle Maintenance - Repairs","25/05/2018"
"Wolverhampton City Council","http://opendatacommunities.org/id/metropolitan-district-council/wolverhampton","AMAZON SVCS EU-UK AMAZ","34.98","LAC Education Team (LACE)","5942","Books","25/05/2018"
"Wolverhampton City Council","http://opendatacommunities.org/id/metropolitan-district-council/wolverhampton","POUNDWORLD RETAIL","6.00","Public Health Support Costs","5331","Equipment - Purchase","25/05/2018"
"Wolverhampton City Council","http://opendatacommunities.org/id/metropolitan-district-council/wolverhampton","AH MEDIA LTD","495.00","Strategic ICTS (ICT Serv Budget)","8999","Services - Professional Fees","25/05/2018"
"Wolverhampton City Council","http://opendatacommunities.org/id/metropolitan-district-council/wolverhampton","SP   AUTODATA LIMITED","87.50","Fleet Management","5734","Stationery","25/05/2018"
"Wolverhampton City Council","http://opendatacommunities.org/id/metropolitan-district-council/wolverhampton","Trainline","52.50","CIN/CP Social Work Unit - Area 4","4112","Section 17","25/05/2018"
"Wolverhampton City Council","http://opendatacommunities.org/id/metropolitan-district-council/wolverhampton","MEDISUPPLIES LTD","57.45","Parks - Ranger Service","5999","Equipment - Purchase","25/05/2018"
"Wolverhampton City Council","http://opendatacommunities.org/id/metropolitan-district-council/wolverhampton","Amazon UK Marketplace","29.16","Parks - Ranger Service","5942","Equipment - Purchase","25/05/2018"
"Wolverhampton City Council","http://opendatacommunities.org/id/metropolitan-district-council/wolverhampton","Amazon UK Marketplace","4.78","Global Budgets","5942","Books","25/05/2018"
"Wolverhampton City Council","http://opendatacommunities.org/id/metropolitan-district-council/wolverhampton","ARGOS DIRECT","23.94","CIN/CP Social Work Unit - Area 3","5310","Equipment - Purchase","25/05/2018"
"Wolverhampton City Council","http://opendatacommunities.org/id/metropolitan-district-council/wolverhampton","Amazon UK Marketplace","8.98","Northicote Farm","5942","Equipment - Purchase","25/05/2018"
"Wolverhampton City Council","http://opendatacommunities.org/id/metropolitan-district-council/wolverhampton","THE RANGE","47.54","Duke Street Bungalows","5311","Equipment - Purchase","25/05/2018"
"Wolverhampton City Council","http://opendatacommunities.org/id/metropolitan-district-council/wolverhampton","Wix.com","46.57","Technical Support","5817","Computing - Purchase of Software","25/05/2018"
"Wolverhampton City Council","http://opendatacommunities.org/id/metropolitan-district-council/wolverhampton","B & Q 1243","8.33","Ernest Bold Court","5211","Equipment - Purchase","25/05/2018"
"Wolverhampton City Council","http://opendatacommunities.org/id/metropolitan-district-council/wolverhampton","WWW.ARGOS.CO.UK","-218.24","LAC Transitions Team","5310","Client Allowances","25/05/2018"
"Wolverhampton City Council","http://opendatacommunities.org/id/metropolitan-district-council/wolverhampton","WWW.ARGOS.CO.UK","218.24","LAC Transitions Team","5310","Client Allowances","25/05/2018"
"Wolverhampton City Council","http://opendatacommunities.org/id/metropolitan-district-council/wolverhampton","WWW.ARGOS.CO.UK","218.24","LAC Transitions Team","5310","Client Allowances","25/05/2018"
"Wolverhampton City Council","http://opendatacommunities.org/id/metropolitan-district-council/wolverhampton","ASDA GROCERIES ONLINE","5.00","Ernest Bold Court","5411","Provisions (Not for resale)","25/05/2018"
"Wolverhampton City Council","http://opendatacommunities.org/id/metropolitan-district-council/wolverhampton","TIMPSON LTD","14.50","Education Catering - General Overheads","7251","Materials","25/05/2018"
"Wolverhampton City Council","http://opendatacommunities.org/id/metropolitan-district-council/wolverhampton","SIGNIS LIMITED","13.95","Workforce Development","8299","Training Expenses","25/05/2018"
"Wolverhampton City Council","http://opendatacommunities.org/id/metropolitan-district-council/wolverhampton","CITY OF WOLVERHAMPTON","60.00","Head of Service - CINCP","9399","Services - Professional Fees","25/05/2018"
"Wolverhampton City Council","http://opendatacommunities.org/id/metropolitan-district-council/wolverhampton","REDWINGS LODGE","33.29","Destitute Plus","7011","Accommodation Costs","25/05/2018"
"Wolverhampton City Council","http://opendatacommunities.org/id/metropolitan-district-council/wolverhampton","J VAN VLIET BIRMINGHAM","59.05","Creative Studies Delivery Area","5399","Materials for resale","25/05/2018"
"Wolverhampton City Council","http://opendatacommunities.org/id/metropolitan-district-council/wolverhampton","Virgin Trains","68.90","EIP Locality 8","4112","Public Transport","25/05/2018"
"Wolverhampton City Council","http://opendatacommunities.org/id/metropolitan-district-council/wolverhampton","HORTON GRANGE COUNTRY","49.17","Safeguarding Admin Resource","7011","Services - Supplies & Services to users","25/05/2018"
"Wolverhampton City Council","http://opendatacommunities.org/id/metropolitan-district-council/wolverhampton","LUL TICKET MACHINE","4.08","Legal Services","4112","Public Transport","25/05/2018"
"Wolverhampton City Council","http://opendatacommunities.org/id/metropolitan-district-council/wolverhampton","LUL TICKET MACHINE","9.80","Legal Services","4112","Public Transport","25/05/2018"
"Wolverhampton City Council","http://opendatacommunities.org/id/metropolitan-district-council/wolverhampton","3C_ ECP Cornhill","5.00","Legal Services","7523","Car Allowances","25/05/2018"
"Wolverhampton City Council","http://opendatacommunities.org/id/metropolitan-district-council/wolverhampton","AMAZON SVCS EU-UK AMAZ","27.74","Central Baths","5942","Equipment - Purchase","25/05/2018"
"Wolverhampton City Council","http://opendatacommunities.org/id/metropolitan-district-council/wolverhampton","TVLICENSING.CO.UK","150.50","Upper Pendeford Farm Childrens Home","7392","Services - Consultants","25/05/2018"
"Wolverhampton City Council","http://opendatacommunities.org/id/metropolitan-district-council/wolverhampton","Amazon EU","135.41","Foundation Studies","5969","Equipment - Purchase","25/05/2018"
"Wolverhampton City Council","http://opendatacommunities.org/id/metropolitan-district-council/wolverhampton","2CO.COM tassosgr","34.19","Service Wide","5817","Marketing \ Non-staff advertising","25/05/2018"
"Wolverhampton City Council","http://opendatacommunities.org/id/metropolitan-district-council/wolverhampton","Trainline","74.80","Director of Education","4112","Public Transport","25/05/2018"
"Wolverhampton City Council","http://opendatacommunities.org/id/metropolitan-district-council/wolverhampton","WM MORRISON 024","48.99","Ernest Bold Court","5411","Provisions (Not for resale)","25/05/2018"
"Wolverhampton City Council","http://opendatacommunities.org/id/metropolitan-district-council/wolverhampton","HM PASSPORT","254.00","CIN/CP Social Work Unit - Area 7","9399","Services - Fees and Charges","25/05/2018"
"Wolverhampton City Council","http://opendatacommunities.org/id/metropolitan-district-council/wolverhampton","HM PASSPORT","254.00","CIN/CP Social Work Unit - Area 7","9399","Services - Fees and Charges","25/05/2018"
"Wolverhampton City Council","http://opendatacommunities.org/id/metropolitan-district-council/wolverhampton","000002200500000","200.00","Childrens with Disabilities Team","6011","Financial Assistance In Exceptional Circ","25/05/2018"
"Wolverhampton City Council","http://opendatacommunities.org/id/metropolitan-district-council/wolverhampton","POST OFFICE COUNTER","8.60","Adoption and Residence Team & Allowances","9402","Comms - Postage","25/05/2018"
"Wolverhampton City Council","http://opendatacommunities.org/id/metropolitan-district-council/wolverhampton","CUMMINGS BROTHERS LOCK","8.33","Culwell Street Depot","7399","R&M - Departmental planned (external)","25/05/2018"
"Wolverhampton City Council","http://opendatacommunities.org/id/metropolitan-district-council/wolverhampton","B & Q 1112","20.83","Towers Outdoor Education Centre","5211","Equipment - Purchase","25/05/2018"
"Wolverhampton City Council","http://opendatacommunities.org/id/metropolitan-district-council/wolverhampton","Trainline","58.50","Research & Development","4112","Public Transport","24/05/2018"
"Wolverhampton City Council","http://opendatacommunities.org/id/metropolitan-district-council/wolverhampton","Virgin Trains","-192.00","Fostering Team & Allowances","4112","Public Transport","24/05/2018"
"Wolverhampton City Council","http://opendatacommunities.org/id/metropolitan-district-council/wolverhampton","Hotel on Booking.com","202.00","GEN Y City Transnational","7011","Services - Supplies & Services to users","24/05/2018"
"Wolverhampton City Council","http://opendatacommunities.org/id/metropolitan-district-council/wolverhampton","ASDA SUPERSTORE","15.75","Mayoral Expenses","5411","Hospitality","24/05/2018"
"Wolverhampton City Council","http://opendatacommunities.org/id/metropolitan-district-council/wolverhampton","Trainline","89.50","Admin & Support","4112","Public Transport","24/05/2018"
"Wolverhampton City Council","http://opendatacommunities.org/id/metropolitan-district-council/wolverhampton","NAMESCO","34.97","Communications & Marketing - General","4816","Computing - Purchase of Software","24/05/2018"
"Wolverhampton City Council","http://opendatacommunities.org/id/metropolitan-district-council/wolverhampton","123-REG.CO.UK","44.94","Strategic ICTS (ICT Serv Budget)","4816","Computing - Purchase of Software","24/05/2018"
"Wolverhampton City Council","http://opendatacommunities.org/id/metropolitan-district-council/wolverhampton","Trainline","82.40","LAC Transitions Team","4112","Client Allowances","24/05/2018"
"Wolverhampton City Council","http://opendatacommunities.org/id/metropolitan-district-council/wolverhampton","GO CARZ","12.60","CIN/CP Social Work Unit - Area 5","4121","Section 17","24/05/2018"
"Wolverhampton City Council","http://opendatacommunities.org/id/metropolitan-district-council/wolverhampton","GO CARZ","11.00","CIN/CP Social Work Unit - Area 5","4121","Section 17","24/05/2018"
"Wolverhampton City Council","http://opendatacommunities.org/id/metropolitan-district-council/wolverhampton","WAITROSE 696","35.88","Music Support Team","5411","Stationery","24/05/2018"
"Wolverhampton City Council","http://opendatacommunities.org/id/metropolitan-district-council/wolverhampton","SAINSBURYS","200.00","Duke Street Bungalows","6011","Provisions (Not for resale)","24/05/2018"
"Wolverhampton City Council","http://opendatacommunities.org/id/metropolitan-district-council/wolverhampton","TESCO STORES 6727","5.00","Adult Services - East","5411","Equipment - Health and Safety","24/05/2018"
"Wolverhampton City Council","http://opendatacommunities.org/id/metropolitan-district-council/wolverhampton","ASDA SUPERSTORE","140.00","CIN/CP Social Work Unit - Area 3","5411","No Recourse to Public Funds","24/05/2018"
"Wolverhampton City Council","http://opendatacommunities.org/id/metropolitan-district-council/wolverhampton","PAYPAL  AMBERLEYCOU","19.99","Archives","2741","Books","24/05/2018"
"Wolverhampton City Council","http://opendatacommunities.org/id/metropolitan-district-council/wolverhampton","CUMMINGS BROTHERS LOCK","7.50","Culwell Street Depot","7399","R&M - Departmental planned (external)","24/05/2018"
"Wolverhampton City Council","http://opendatacommunities.org/id/metropolitan-district-council/wolverhampton","PO WILLENHALL RD 5497","80.00","EIP Locality 1","6011","Grant Payments","24/05/2018"
"Wolverhampton City Council","http://opendatacommunities.org/id/metropolitan-district-council/wolverhampton","B & Q 1169","-35.67","Technician","5211","Materials","24/05/2018"
"Wolverhampton City Council","http://opendatacommunities.org/id/metropolitan-district-council/wolverhampton","ARGOS RETAIL GROUP","24.99","LAC Transitions Team","5310","Client Allowances","24/05/2018"
"Wolverhampton City Council","http://opendatacommunities.org/id/metropolitan-district-council/wolverhampton","BRITANNIA","33.33","Emergency Duty Team","7011","Services - Supplies & Services to users","24/05/2018"
"Wolverhampton City Council","http://opendatacommunities.org/id/metropolitan-district-council/wolverhampton","YMLP.COM","105.00","Audience Development","7372","Marketing \ Non-staff advertising","24/05/2018"
"Wolverhampton City Council","http://opendatacommunities.org/id/metropolitan-district-council/wolverhampton","PAYPAL  THEROTA","103.82","Civic Halls Non Direct Management A/C","5735","Computing - Purchase of Software","24/05/2018"
"Wolverhampton City Council","http://opendatacommunities.org/id/metropolitan-district-council/wolverhampton","TV LICENSING","150.50","The Little Civic","7392","Services - General Licences","24/05/2018"
"Wolverhampton City Council","http://opendatacommunities.org/id/metropolitan-district-council/wolverhampton","TEX MEADOWVALEGAR","105.69","Towers Outdoor Education Centre","5541","Fixtures and Fittings - Purchases","24/05/2018"
"Wolverhampton City Council","http://opendatacommunities.org/id/metropolitan-district-council/wolverhampton","ORCHARD HOTEL","93.75","Electoral Registration","7011","Accommodation Costs","24/05/2018"
"Wolverhampton City Council","http://opendatacommunities.org/id/metropolitan-district-council/wolverhampton","ORCHARD HOTEL","93.75","Electoral Registration","7011","Accommodation Costs","24/05/2018"
"Wolverhampton City Council","http://opendatacommunities.org/id/metropolitan-district-council/wolverhampton","Amazon UK Marketplace","33.31","Northicote Farm","5942","Equipment - Purchase","24/05/2018"
"Wolverhampton City Council","http://opendatacommunities.org/id/metropolitan-district-council/wolverhampton","123-REG.CO.UK","-0.99","Technical Support","4816","Computing - Purchase of Software","24/05/2018"
"Wolverhampton City Council","http://opendatacommunities.org/id/metropolitan-district-council/wolverhampton","CO-OPERATIVE TRAVE","2840.53","Leonardo Da Vinci Project","6051","Subsistence","24/05/2018"
"Wolverhampton City Council","http://opendatacommunities.org/id/metropolitan-district-council/wolverhampton","ARGOS RETAIL GROUP","10.82","Specialist Support Service - North","5310","Equipment - Purchase","24/05/2018"
"Wolverhampton City Council","http://opendatacommunities.org/id/metropolitan-district-council/wolverhampton","WWW.CLT.CO.UK","158.00","Central Training","8220","Training Expenses","24/05/2018"
"Wolverhampton City Council","http://opendatacommunities.org/id/metropolitan-district-council/wolverhampton","E01350800000000","100.00","Ernest Bold Court","6011","Materials","24/05/2018"
"Wolverhampton City Council","http://opendatacommunities.org/id/metropolitan-district-council/wolverhampton","VODAFONE LTD","10.00","Children & Family Contact Services","4814","Provisions (Not for resale)","24/05/2018"
"Wolverhampton City Council","http://opendatacommunities.org/id/metropolitan-district-council/wolverhampton","PRESTWOOD PETZONE","4.16","Children & Family Contact Services","5995","Equipment - Purchase","24/05/2018"
"Wolverhampton City Council","http://opendatacommunities.org/id/metropolitan-district-council/wolverhampton","GO CARZ","35.90","CIN/CP Social Work Unit - Area 5","4121","Section 17","24/05/2018"
"Wolverhampton City Council","http://opendatacommunities.org/id/metropolitan-district-council/wolverhampton","POST OFFICE COUNTER","6.50","Fostering Team & Allowances","9402","Comms - Postage","23/05/2018"
"Wolverhampton City Council","http://opendatacommunities.org/id/metropolitan-district-council/wolverhampton","MCDONALDS","3.82","Headstart - Young People Engagement","5814","Subsistence","23/05/2018"
"Wolverhampton City Council","http://opendatacommunities.org/id/metropolitan-district-council/wolverhampton","Trainline","-27.40","Admin & Support","4112","Public Transport","23/05/2018"
"Wolverhampton City Council","http://opendatacommunities.org/id/metropolitan-district-council/wolverhampton","MARKS&SPENCER PLC","8.00","Admin & Support","5411","Provisions (Not for resale)","23/05/2018"
"Wolverhampton City Council","http://opendatacommunities.org/id/metropolitan-district-council/wolverhampton","Trainline","118.50","Admin & Support","4112","Public Transport","23/05/2018"
"Wolverhampton City Council","http://opendatacommunities.org/id/metropolitan-district-council/wolverhampton","O E METCALFE","87.25","Towers Outdoor Education Centre","5499","Catering","23/05/2018"
"Wolverhampton City Council","http://opendatacommunities.org/id/metropolitan-district-council/wolverhampton","Amazon EU","24.30","Towers Outdoor Education Centre","5969","Equipment - Purchase","23/05/2018"
"Wolverhampton City Council","http://opendatacommunities.org/id/metropolitan-district-council/wolverhampton","AMAZON SVCS EU-UK AMAZ","7.87","Towers Outdoor Education Centre","5942","Fixtures and Fittings - Purchases","23/05/2018"
"Wolverhampton City Council","http://opendatacommunities.org/id/metropolitan-district-council/wolverhampton","Trainline","109.10","Electoral Registration","4112","Public Transport","23/05/2018"
"Wolverhampton City Council","http://opendatacommunities.org/id/metropolitan-district-council/wolverhampton","Trainline","70.40","Research & Development","4112","Public Transport","23/05/2018"
"Wolverhampton City Council","http://opendatacommunities.org/id/metropolitan-district-council/wolverhampton","PREECE BURFORD (BI) LT","112.40","EIP Locality 4","5251","Equipment - Purchase","23/05/2018"
"Wolverhampton City Council","http://opendatacommunities.org/id/metropolitan-district-council/wolverhampton","UNTOUCHABLES","18.06","Cemeteries","5231","Materials","23/05/2018"
"Wolverhampton City Council","http://opendatacommunities.org/id/metropolitan-district-council/wolverhampton","IRONMONGERY DIRECT LTD","37.55","Technician","5231","Materials","23/05/2018"
"Wolverhampton City Council","http://opendatacommunities.org/id/metropolitan-district-council/wolverhampton","WM MORRISON FOOD.COM","82.14","Discretionary Fund","5411","Materials","23/05/2018"
"Wolverhampton City Council","http://opendatacommunities.org/id/metropolitan-district-council/wolverhampton","EE & T-MOBILE","70.36","Civic Halls Non Direct Management A/C","4814","Comms - Mobile Telephones","23/05/2018"
"Wolverhampton City Council","http://opendatacommunities.org/id/metropolitan-district-council/wolverhampton","POST OFFICE COUNTER","13.25","Adoption and Residence Team & Allowances","9402","Comms - Postage","23/05/2018"
"Wolverhampton City Council","http://opendatacommunities.org/id/metropolitan-district-council/wolverhampton","TESCO STORES 5194","186.70","Towers Outdoor Education Centre","5411","Provisions (Not for resale)","23/05/2018"
"Wolverhampton City Council","http://opendatacommunities.org/id/metropolitan-district-council/wolverhampton","CHARTERED INST OF LEGA","250.00","Legal Services","8699","Subscriptions","23/05/2018"
"Wolverhampton City Council","http://opendatacommunities.org/id/metropolitan-district-council/wolverhampton","SCREWFIX DIRECT","25.82","Creative Studies Delivery Area","5211","Equipment - Purchase","23/05/2018"
"Wolverhampton City Council","http://opendatacommunities.org/id/metropolitan-district-council/wolverhampton","Trainline","58.50","Research & Development","4112","Public Transport","23/05/2018"
"Wolverhampton City Council","http://opendatacommunities.org/id/metropolitan-district-council/wolverhampton","ROYAL CARPETS","125.00","LAC Transitions Team","5713","Independant Living Allowance","23/05/2018"
"Wolverhampton City Council","http://opendatacommunities.org/id/metropolitan-district-council/wolverhampton","ROYAL CARPETS","83.33","LAC Transitions Team","5713","Client Allowances","23/05/2018"
"Wolverhampton City Council","http://opendatacommunities.org/id/metropolitan-district-council/wolverhampton","WWW.PETERS-EDUCATIONAL","15.00","New arrival","5712","Equipment - Purchase","23/05/2018"
"Wolverhampton City Council","http://opendatacommunities.org/id/metropolitan-district-council/wolverhampton","ASDA SUPERSTORE","42.14","EIP Locality 6","5411","Training Expenses","23/05/2018"
"Wolverhampton City Council","http://opendatacommunities.org/id/metropolitan-district-council/wolverhampton","Amazon UK Marketplace","17.74","Bradley Resource Centre","5942","Equipment - Purchase","23/05/2018"
"Wolverhampton City Council","http://opendatacommunities.org/id/metropolitan-district-council/wolverhampton","WEST MID TRAVEL","446.90","Community Enablement","4131","Public Transport","23/05/2018"
"Wolverhampton City Council","http://opendatacommunities.org/id/metropolitan-district-council/wolverhampton","123-REG.CO.UK","11.99","Technical Support","4816","Computing - Purchase of Software","23/05/2018"
"Wolverhampton City Council","http://opendatacommunities.org/id/metropolitan-district-council/wolverhampton","Amazon Prime","7.99","Technical Support","5968","Subscriptions","23/05/2018"
"Wolverhampton City Council","http://opendatacommunities.org/id/metropolitan-district-council/wolverhampton","PAYPAL  CHILDFAMILY","27.50","EIP Locality 3","8299","Equipment - Purchase","23/05/2018"
"Wolverhampton City Council","http://opendatacommunities.org/id/metropolitan-district-council/wolverhampton","CAPITAL RESOLVE LTD R/","276.45","Civic Centre","7299","Services - Supplies & Services to users","23/05/2018"
"Wolverhampton City Council","http://opendatacommunities.org/id/metropolitan-district-council/wolverhampton","Amazon EU","152.69","Duke Street Bungalows","5969","Stationery","23/05/2018"
"Wolverhampton City Council","http://opendatacommunities.org/id/metropolitan-district-council/wolverhampton","ASDA SUPERSTORE","100.00","CIN/CP Social Work Unit - Area 4","5411","Section 17","23/05/2018"
"Wolverhampton City Council","http://opendatacommunities.org/id/metropolitan-district-council/wolverhampton","ASDA SUPERSTORE","100.00","CIN/CP Social Work Unit - Area 4","5411","Section 17","23/05/2018"
"Wolverhampton City Council","http://opendatacommunities.org/id/metropolitan-district-council/wolverhampton","Trainline","50.30","Legal Services","4112","Public Transport","23/05/2018"
"Wolverhampton City Council","http://opendatacommunities.org/id/metropolitan-district-council/wolverhampton","J VAN VLIET BIRMINGHAM","78.80","Creative Studies Delivery Area","5399","Materials","23/05/2018"
"Wolverhampton City Council","http://opendatacommunities.org/id/metropolitan-district-council/wolverhampton","J VAN VLIET BIRMINGHAM","109.40","Creative Studies Delivery Area","5399","Materials","23/05/2018"
"Wolverhampton City Council","http://opendatacommunities.org/id/metropolitan-district-council/wolverhampton","J VAN VLIET BIRMINGHAM","65.20","Creative Studies Delivery Area","5399","Materials for resale","23/05/2018"
"Wolverhampton City Council","http://opendatacommunities.org/id/metropolitan-district-council/wolverhampton","J VAN VLIET BIRMINGHAM","26.37","Creative Studies Delivery Area","5399","Materials","23/05/2018"
"Wolverhampton City Council","http://opendatacommunities.org/id/metropolitan-district-council/wolverhampton","Amazon UK Marketplace","21.15","Street Cleansing Overheads","5942","Materials","23/05/2018"
"Wolverhampton City Council","http://opendatacommunities.org/id/metropolitan-district-council/wolverhampton","SAINSBURYS SACAT 2040","6.67","Duke Street Bungalows","5411","Equipment - Purchase","23/05/2018"
"Wolverhampton City Council","http://opendatacommunities.org/id/metropolitan-district-council/wolverhampton","Virgin Trains","77.60","Information Governance Team","4112","Public Transport","23/05/2018"
"Wolverhampton City Council","http://opendatacommunities.org/id/metropolitan-district-council/wolverhampton","Amazon EU","14.58","Northicote Farm","5969","Clothing / Uniforms","23/05/2018"
"Wolverhampton City Council","http://opendatacommunities.org/id/metropolitan-district-council/wolverhampton","ROYAL CARPETS","166.67","LAC Transitions Team","5713","Client Allowances","22/05/2018"
"Wolverhampton City Council","http://opendatacommunities.org/id/metropolitan-district-council/wolverhampton","Trainline","258.15","Research & Development","4112","Public Transport","22/05/2018"
"Wolverhampton City Council","http://opendatacommunities.org/id/metropolitan-district-council/wolverhampton","Amazon EU","29.22","Adoption and Residence Team & Allowances","5969","Equipment - Purchase","22/05/2018"
"Wolverhampton City Council","http://opendatacommunities.org/id/metropolitan-district-council/wolverhampton","POST OFFICE COUNTER","7.30","Adoption and Residence Team & Allowances","9402","Comms - Postage","22/05/2018"
"Wolverhampton City Council","http://opendatacommunities.org/id/metropolitan-district-council/wolverhampton","LONDIS","3.50","Towers Outdoor Education Centre","5921","Provisions (Not for resale)","22/05/2018"
"Wolverhampton City Council","http://opendatacommunities.org/id/metropolitan-district-council/wolverhampton","TESCO STORES 6667","8.70","Towers Outdoor Education Centre","5411","Provisions (Not for resale)","22/05/2018"
"Wolverhampton City Council","http://opendatacommunities.org/id/metropolitan-district-council/wolverhampton","Hotel on Booking.com","-15.83","IMPACT","7011","Services - Supplies & Services to users","22/05/2018"
"Wolverhampton City Council","http://opendatacommunities.org/id/metropolitan-district-council/wolverhampton","AMAZON SVCS EU-UK AMAZ","13.99","LAC Education Team (LACE)","5942","Equipment - Purchase","22/05/2018"
"Wolverhampton City Council","http://opendatacommunities.org/id/metropolitan-district-council/wolverhampton","WWW.REED.CO.UK","210.00","Strategic ICTS (ICT Serv Budget)","7361","Staff Advertising Costs","22/05/2018"
"Wolverhampton City Council","http://opendatacommunities.org/id/metropolitan-district-council/wolverhampton","Trainline","95.10","Service Director Disab & Mental Health","4112","Public Transport","22/05/2018"
"Wolverhampton City Council","http://opendatacommunities.org/id/metropolitan-district-council/wolverhampton","ASDA SUPERSTORE","7.32","Ernest Bold Court","5411","Provisions (Not for resale)","22/05/2018"
"Wolverhampton City Council","http://opendatacommunities.org/id/metropolitan-district-council/wolverhampton","TRAVELODGE","361.00","IMPACT","3615","Accommodation Costs","22/05/2018"
"Wolverhampton City Council","http://opendatacommunities.org/id/metropolitan-district-council/wolverhampton","ROYAL CARPETS","166.67","LAC Transitions Team","5713","Client Allowances","22/05/2018"
"Wolverhampton City Council","http://opendatacommunities.org/id/metropolitan-district-council/wolverhampton","ROYAL CARPETS","166.67","LAC Transitions Team","5713","Client Allowances","22/05/2018"
"Wolverhampton City Council","http://opendatacommunities.org/id/metropolitan-district-council/wolverhampton","WWW.BEDS.CO.UK","232.50","LAC Transitions Team","5712","Client Allowances","22/05/2018"
"Wolverhampton City Council","http://opendatacommunities.org/id/metropolitan-district-council/wolverhampton","AMAZON SVCS EU-UK AMAZ","-49.99","Employment Programmes","5942","Books","22/05/2018"
"Wolverhampton City Council","http://opendatacommunities.org/id/metropolitan-district-council/wolverhampton","THE WORKS","6.00","Head of Strategic Commissioning � People","5310","Equipment - Purchase","22/05/2018"
"Wolverhampton City Council","http://opendatacommunities.org/id/metropolitan-district-council/wolverhampton","Amazon UK Marketplace","59.99","Technical Support","5942","Computing - Purchase of Hardware","22/05/2018"
"Wolverhampton City Council","http://opendatacommunities.org/id/metropolitan-district-council/wolverhampton","ASDA GROCERIES ONLINE","70.01","Ernest Bold Court","5411","Provisions (Not for resale)","22/05/2018"
"Wolverhampton City Council","http://opendatacommunities.org/id/metropolitan-district-council/wolverhampton","ASDA SUPERSTORE","10.47","CIN/CP Social Work Unit - Area 5","5411","No Recourse to Public Funds","22/05/2018"
"Wolverhampton City Council","http://opendatacommunities.org/id/metropolitan-district-council/wolverhampton","ASDA SUPERSTORE","14.34","CIN/CP Social Work Unit - Area 5","5411","No Recourse to Public Funds","22/05/2018"
"Wolverhampton City Council","http://opendatacommunities.org/id/metropolitan-district-council/wolverhampton","SCREWFIX DIRECT LT","99.97","Parks - Management and Admin","5211","Equipment - Purchase","22/05/2018"
"Wolverhampton City Council","http://opendatacommunities.org/id/metropolitan-district-council/wolverhampton","NCE COMPUTER GROUP","202.50","Strategic ICTS (ICT Serv Budget)","7372","Equipment - Purchase","22/05/2018"
"Wolverhampton City Council","http://opendatacommunities.org/id/metropolitan-district-council/wolverhampton","B&Q DIRECT","35.67","Technician","5211","Materials","22/05/2018"
"Wolverhampton City Council","http://opendatacommunities.org/id/metropolitan-district-council/wolverhampton","LION PICTURE FRAMING S","66.20","Technician","5999","R4007","22/05/2018"
"Wolverhampton City Council","http://opendatacommunities.org/id/metropolitan-district-council/wolverhampton","ASDA SUPERSTORE","128.33","LAC Transitions Team","5411","Independant Living Allowance","22/05/2018"
"Wolverhampton City Council","http://opendatacommunities.org/id/metropolitan-district-council/wolverhampton","HOME BARGAINS WOLVERHA","37.01","LAC Transitions Team","5251","Independant Living Allowance","22/05/2018"
"Wolverhampton City Council","http://opendatacommunities.org/id/metropolitan-district-council/wolverhampton","POST OFFICE COUNTER","6.50","Radical Landscapes","9402","Comms - Postage","22/05/2018"
"Wolverhampton City Council","http://opendatacommunities.org/id/metropolitan-district-council/wolverhampton","OFSTED MOTO","50.00","EIP Locality 8","9399","Services - Professional Fees","22/05/2018"
"Wolverhampton City Council","http://opendatacommunities.org/id/metropolitan-district-council/wolverhampton","WP-CENTRAL TAXIS L","380.00","Adoption and Residence Team & Allowances","4121","Client Transport","21/05/2018"
"Wolverhampton City Council","http://opendatacommunities.org/id/metropolitan-district-council/wolverhampton","TOOLSTATION LTD","8.32","Public Conveniences","5251","Equipment - Purchase","21/05/2018"
"Wolverhampton City Council","http://opendatacommunities.org/id/metropolitan-district-council/wolverhampton","WISEPOPS","45.13","City Direct","7372","Computing - Purchase of Software","21/05/2018"
"Wolverhampton City Council","http://opendatacommunities.org/id/metropolitan-district-council/wolverhampton","ASDA SUPERSTORE","0.66","City Direct","5411","Provisions (Not for resale)","21/05/2018"
"Wolverhampton City Council","http://opendatacommunities.org/id/metropolitan-district-council/wolverhampton","Amazon UK Marketplace","17.99","Adoption and Residence Team & Allowances","5942","Stationery","21/05/2018"
"Wolverhampton City Council","http://opendatacommunities.org/id/metropolitan-district-council/wolverhampton","POUNDLAND LTD 1463","1.67","City Direct","5310","Equipment - Purchase","21/05/2018"
"Wolverhampton City Council","http://opendatacommunities.org/id/metropolitan-district-council/wolverhampton","NAMESCO","23.96","Inclusion Support","4816","Computing - Purchase of Software","21/05/2018"
"Wolverhampton City Council","http://opendatacommunities.org/id/metropolitan-district-council/wolverhampton","Amazon UK Marketplace","17.99","Adoption and Residence Team & Allowances","5942","Stationery","21/05/2018"
"Wolverhampton City Council","http://opendatacommunities.org/id/metropolitan-district-council/wolverhampton","Amazon EU","28.29","LAC Education Team (LACE)","5969","Equipment - Purchase","21/05/2018"
"Wolverhampton City Council","http://opendatacommunities.org/id/metropolitan-district-council/wolverhampton","WP-CENTRAL TAXIS L","-20.83","LAC Education Team (LACE)","4121","Client Transport","21/05/2018"
"Wolverhampton City Council","http://opendatacommunities.org/id/metropolitan-district-council/wolverhampton","Amazon UK Marketplace","17.99","Adoption and Residence Team & Allowances","5942","Stationery","21/05/2018"
"Wolverhampton City Council","http://opendatacommunities.org/id/metropolitan-district-council/wolverhampton","ARGOS LTD","224.17","LAC Transitions Team","5310","Client Allowances","21/05/2018"
"Wolverhampton City Council","http://opendatacommunities.org/id/metropolitan-district-council/wolverhampton","POST OFFICE COUNTER","2.87","Cemeteries","9402","Comms - Postage","21/05/2018"
"Wolverhampton City Council","http://opendatacommunities.org/id/metropolitan-district-council/wolverhampton","ASDA SUPERSTORE","9.19","Public Health Support Costs","5411","Catering","21/05/2018"
"Wolverhampton City Council","http://opendatacommunities.org/id/metropolitan-district-council/wolverhampton","AMAZON SVCS EU-UK AMAZ","58.20","Strategic ICTS (ICT Serv Budget)","5942","Books","21/05/2018"
"Wolverhampton City Council","http://opendatacommunities.org/id/metropolitan-district-council/wolverhampton","Amazon Prime","7.99","Strategic ICTS (ICT Serv Budget)","5968","Subscriptions","21/05/2018"
"Wolverhampton City Council","http://opendatacommunities.org/id/metropolitan-district-council/wolverhampton","PREMIER INN","219.47","Culwell Street Depot","3811","Accommodation Costs","21/05/2018"
"Wolverhampton City Council","http://opendatacommunities.org/id/metropolitan-district-council/wolverhampton","ASDA GROCERIES ONLINE","-3.21","Upper Pendeford Farm Childrens Home","5411","Provisions (Not for resale)","21/05/2018"
"Wolverhampton City Council","http://opendatacommunities.org/id/metropolitan-district-council/wolverhampton","ASDA GROCERIES ONLINE","171.25","Upper Pendeford Farm Childrens Home","5411","Provisions (Not for resale)","21/05/2018"
"Wolverhampton City Council","http://opendatacommunities.org/id/metropolitan-district-council/wolverhampton","B&M RETAIL","15.02","LAC Transitions Team","5310","Client Allowances","21/05/2018"
"Wolverhampton City Council","http://opendatacommunities.org/id/metropolitan-district-council/wolverhampton","PO WILLENHALL RD 5497","50.00","EIP Locality 1","6011","Financial Assistance In Exceptional Circ","21/05/2018"
"Wolverhampton City Council","http://opendatacommunities.org/id/metropolitan-district-council/wolverhampton","B & Q 1243","10.83","Specialist Support Service - North","5211","Equipment - R & M","21/05/2018"
"Wolverhampton City Council","http://opendatacommunities.org/id/metropolitan-district-council/wolverhampton","ASDA GROCERIES ONLINE","-0.15","Ernest Bold Court","5411","Provisions (Not for resale)","21/05/2018"
"Wolverhampton City Council","http://opendatacommunities.org/id/metropolitan-district-council/wolverhampton","ASDA GROCERIES ONLINE","73.22","Ernest Bold Court","5411","Provisions (Not for resale)","21/05/2018"
"Wolverhampton City Council","http://opendatacommunities.org/id/metropolitan-district-council/wolverhampton","AMAZON SVCS EU-UK AMAZ","22.85","EIP Locality 2","5942","Equipment - Purchase","21/05/2018"
"Wolverhampton City Council","http://opendatacommunities.org/id/metropolitan-district-council/wolverhampton","AMAZON SVCS EU-UK AMAZ","119.97","EIP Locality 2","5942","Equipment - Purchase","21/05/2018"
"Wolverhampton City Council","http://opendatacommunities.org/id/metropolitan-district-council/wolverhampton","AMAZON SVCS EU-UK AMAZ","35.97","EIP Locality 2","5942","Equipment - Purchase","21/05/2018"
"Wolverhampton City Council","http://opendatacommunities.org/id/metropolitan-district-council/wolverhampton","NEW LOOK INTERNET","26.98","EIP Locality 2","5621","Grant Payments","21/05/2018"
"Wolverhampton City Council","http://opendatacommunities.org/id/metropolitan-district-council/wolverhampton","NATWEST BANK","200.00","Democratic Support","6011","Public Transport","21/05/2018"
"Wolverhampton City Council","http://opendatacommunities.org/id/metropolitan-district-council/wolverhampton","AMZ Amazon.co.uk","-184.67","Duke Street Bungalows","5969","Stationery","21/05/2018"
"Wolverhampton City Council","http://opendatacommunities.org/id/metropolitan-district-council/wolverhampton","POST OFFICE COUNTER","15.00","CIN/CP Social Work Unit - Area 4","9402","Section 17","21/05/2018"
"Wolverhampton City Council","http://opendatacommunities.org/id/metropolitan-district-council/wolverhampton","Cross Country Trains","-36.20","Central Training","4112","Public Transport","21/05/2018"
"Wolverhampton City Council","http://opendatacommunities.org/id/metropolitan-district-council/wolverhampton","Virgin Trains","217.80","MASH","4112","Public Transport","21/05/2018"
"Wolverhampton City Council","http://opendatacommunities.org/id/metropolitan-district-council/wolverhampton","SCREWFIX WOLVERHAM","99.97","Parks - Management and Admin","5211","Equipment - Purchase","21/05/2018"
"Wolverhampton City Council","http://opendatacommunities.org/id/metropolitan-district-council/wolverhampton","ALDI 78 772","31.69","EIP Locality 7","5411","Hospitality","21/05/2018"
"Wolverhampton City Council","http://opendatacommunities.org/id/metropolitan-district-council/wolverhampton","PO LOW HILL 1592","100.00","EIP Locality 7","6011","Grant Payments","21/05/2018"
"Wolverhampton City Council","http://opendatacommunities.org/id/metropolitan-district-council/wolverhampton","REGISTRARS OFFICE","10.00","Adoption and Residence Team & Allowances","8299","Services - Fees and Charges","21/05/2018"
"Wolverhampton City Council","http://opendatacommunities.org/id/metropolitan-district-council/wolverhampton","REGISTRARS OFFICE","10.00","Adoption and Residence Team & Allowances","8299","Services - Fees and Charges","21/05/2018"
"Wolverhampton City Council","http://opendatacommunities.org/id/metropolitan-district-council/wolverhampton","POST OFFICE COUNTER","177.00","Adoption and Residence Team & Allowances","9402","Comms - Postage","21/05/2018"
"Wolverhampton City Council","http://opendatacommunities.org/id/metropolitan-district-council/wolverhampton","POST OFFICE COUNTER","11.00","Adoption and Residence Team & Allowances","9402","Comms - Postage","21/05/2018"
"Wolverhampton City Council","http://opendatacommunities.org/id/metropolitan-district-council/wolverhampton","000002200500000","250.00","CIN/CP Social Work Unit - Area 6","6011","Financial Assistance In Exceptional Circ","21/05/2018"
"Wolverhampton City Council","http://opendatacommunities.org/id/metropolitan-district-council/wolverhampton","WOLVERHAMPTON TO","5.70","Economic Development","4112","Public Transport","21/05/2018"
"Wolverhampton City Council","http://opendatacommunities.org/id/metropolitan-district-council/wolverhampton","WOLVERHAMPTON SST","4.40","GEN Y City Transnational","4112","Public Transport","21/05/2018"
"Wolverhampton City Council","http://opendatacommunities.org/id/metropolitan-district-council/wolverhampton","WEX PHOTOGRAPHIC","135.00","Communications & Marketing - General","5946","Equipment - Purchase","21/05/2018"
"Wolverhampton City Council","http://opendatacommunities.org/id/metropolitan-district-council/wolverhampton","HMCOURTS-SERVICE.G","62.50","Mental Health Assessment & Care Mgmt","9222","Services - Fees and Charges","21/05/2018"
"Wolverhampton City Council","http://opendatacommunities.org/id/metropolitan-district-council/wolverhampton","LOVE2SHOP.CO.UK","496.45","IMPACT","8641","Educ Trips, Holidays, Outings, Activity","21/05/2018"
"Wolverhampton City Council","http://opendatacommunities.org/id/metropolitan-district-council/wolverhampton","WEST MID TRAVEL","436.90","IMPACT","4131","Public Transport","21/05/2018"
"Wolverhampton City Council","http://opendatacommunities.org/id/metropolitan-district-council/wolverhampton","LOOP11.COM","152.25","City Direct","7372","Computing - Purchase of Software","21/05/2018"
"Wolverhampton City Council","http://opendatacommunities.org/id/metropolitan-district-council/wolverhampton","WWW.DMMCLIMBING.COM","473.02","Towers Outdoor Education Centre","5999","Equipment - Purchase","18/05/2018"
"Wolverhampton City Council","http://opendatacommunities.org/id/metropolitan-district-council/wolverhampton","ASDA SUPERSTORE","14.04","Queen St Townscape Heritage (HLF)","5411","Materials","18/05/2018"
"Wolverhampton City Council","http://opendatacommunities.org/id/metropolitan-district-council/wolverhampton","Amazon UK Marketplace","11.63","Queen St Townscape Heritage (HLF)","5942","Materials","18/05/2018"
"Wolverhampton City Council","http://opendatacommunities.org/id/metropolitan-district-council/wolverhampton","Amazon UK Marketplace","58.00","Education And Access","5942","Materials","18/05/2018"
"Wolverhampton City Council","http://opendatacommunities.org/id/metropolitan-district-council/wolverhampton","Amazon UK Marketplace","6.87","Queen St Townscape Heritage (HLF)","5942","Materials","18/05/2018"
"Wolverhampton City Council","http://opendatacommunities.org/id/metropolitan-district-council/wolverhampton","WEST COAST TRAINS - EN","9.80","Economic Development","4112","Public Transport","18/05/2018"
"Wolverhampton City Council","http://opendatacommunities.org/id/metropolitan-district-council/wolverhampton","POST OFFICE COUNTER","235.00","Fostering Team & Allowances","9402","Comms - Postage","18/05/2018"
"Wolverhampton City Council","http://opendatacommunities.org/id/metropolitan-district-council/wolverhampton","AMAZON SVCS EU-UK AMAZ","24.99","Communications & Marketing - General","5942","Books","18/05/2018"
"Wolverhampton City Council","http://opendatacommunities.org/id/metropolitan-district-council/wolverhampton","PADDLE.NET BOOTSTRAPST","19.10","City Direct","5734","Computing - Purchase of Software","18/05/2018"
"Wolverhampton City Council","http://opendatacommunities.org/id/metropolitan-district-council/wolverhampton","SCREWFIX DIRECT LT","291.66","Cemeteries","5211","Materials","18/05/2018"
"Wolverhampton City Council","http://opendatacommunities.org/id/metropolitan-district-council/wolverhampton","LADDERS UK DIRECT","69.17","Cemeteries","5072","Equipment - Purchase","18/05/2018"
"Wolverhampton City Council","http://opendatacommunities.org/id/metropolitan-district-council/wolverhampton","POUNDWORLD RETAIL","3.00","Public Health Support Costs","5331","Equipment - Purchase","18/05/2018"
"Wolverhampton City Council","http://opendatacommunities.org/id/metropolitan-district-council/wolverhampton","Amazon UK Marketplace","6.29","Adoption and Residence Team & Allowances","5942","Stationery","18/05/2018"
"Wolverhampton City Council","http://opendatacommunities.org/id/metropolitan-district-council/wolverhampton","Amazon EU","16.70","LAC Transitions Team","5969","Equipment - Purchase","18/05/2018"
"Wolverhampton City Council","http://opendatacommunities.org/id/metropolitan-district-council/wolverhampton","JOHNSONS","18.00","Service Wide","7210","Contract Cleaning","18/05/2018"
"Wolverhampton City Council","http://opendatacommunities.org/id/metropolitan-district-council/wolverhampton","Amazon UK Marketplace","28.47","ICT Services","5942","Computing - Purchase of Hardware","18/05/2018"
"Wolverhampton City Council","http://opendatacommunities.org/id/metropolitan-district-council/wolverhampton","WWW.CARESHOP.CO.UK","71.38","Ernest Bold Court","5999","Equipment - Purchase","18/05/2018"
"Wolverhampton City Council","http://opendatacommunities.org/id/metropolitan-district-council/wolverhampton","SAINSBURYS","10.00","EIP Locality 1","6011","Grant Payments","18/05/2018"
"Wolverhampton City Council","http://opendatacommunities.org/id/metropolitan-district-council/wolverhampton","WWW.ARGOS.CO.UK","36.99","EIP Locality 1","5310","Grant Payments","18/05/2018"
"Wolverhampton City Council","http://opendatacommunities.org/id/metropolitan-district-council/wolverhampton","Amazon UK Marketplace","18.99","EIP Locality 1","5942","Equipment - Purchase","18/05/2018"
"Wolverhampton City Council","http://opendatacommunities.org/id/metropolitan-district-council/wolverhampton","SAINSBURYS","200.00","Duke Street Bungalows","6011","Provisions (Not for resale)","18/05/2018"
"Wolverhampton City Council","http://opendatacommunities.org/id/metropolitan-district-council/wolverhampton","Trainline","203.00","Head of Service - LAC","4112","Public Transport","18/05/2018"
"Wolverhampton City Council","http://opendatacommunities.org/id/metropolitan-district-council/wolverhampton","Trainline","183.50","Welfare Rights","4112","Public Transport","18/05/2018"
"Wolverhampton City Council","http://opendatacommunities.org/id/metropolitan-district-council/wolverhampton","REGISTRARS OFFICE","60.00","Head of Service - CINCP","8299","Services - Professional Fees","18/05/2018"
"Wolverhampton City Council","http://opendatacommunities.org/id/metropolitan-district-council/wolverhampton","REGISTRARS OFFICE","27.00","Head of Service - CINCP","8299","Services - Professional Fees","18/05/2018"
"Wolverhampton City Council","http://opendatacommunities.org/id/metropolitan-district-council/wolverhampton","REGISTRARS OFFICE","30.00","Head of Service - CINCP","8299","Services - Professional Fees","18/05/2018"
"Wolverhampton City Council","http://opendatacommunities.org/id/metropolitan-district-council/wolverhampton","Trainline","24.95","Legal Services","4112","Public Transport","18/05/2018"
"Wolverhampton City Council","http://opendatacommunities.org/id/metropolitan-district-council/wolverhampton","J VAN VLIET BIRMINGHAM","79.40","Central Costs","5399","Materials for resale","18/05/2018"
"Wolverhampton City Council","http://opendatacommunities.org/id/metropolitan-district-council/wolverhampton","REGISTRARS OFFICE","10.00","CIN/CP Social Work Unit - Area 1","8299","Section 17","18/05/2018"
"Wolverhampton City Council","http://opendatacommunities.org/id/metropolitan-district-council/wolverhampton","GO CARZ","35.00","CIN/CP Social Work Unit - Area 8","4121","Section 17","18/05/2018"
"Wolverhampton City Council","http://opendatacommunities.org/id/metropolitan-district-council/wolverhampton","ARGOS WOLVERHAMPTO","41.66","Strategic ICTS (ICT Serv Budget)","5310","Equipment - Purchase","18/05/2018"
"Wolverhampton City Council","http://opendatacommunities.org/id/metropolitan-district-council/wolverhampton","WWW.JCTLTD.CO.UK","123.57","HRA General","5942","Books","17/05/2018"
"Wolverhampton City Council","http://opendatacommunities.org/id/metropolitan-district-council/wolverhampton","SEVERN TRENT WATER","294.47","Property Services - Building Maintenance","4900","Water Charges","17/05/2018"
"Wolverhampton City Council","http://opendatacommunities.org/id/metropolitan-district-council/wolverhampton","123-REG.CO.UK","0.99","Technical Support","4816","Computing - Purchase of Software","17/05/2018"
"Wolverhampton City Council","http://opendatacommunities.org/id/metropolitan-district-council/wolverhampton","Amazon UK Marketplace","9.49","Global Budgets","5942","Books","17/05/2018"
"Wolverhampton City Council","http://opendatacommunities.org/id/metropolitan-district-council/wolverhampton","TESCO-Seller_IST_1_240","14.16","EIP Locality 3","5999","Grant Payments","17/05/2018"
"Wolverhampton City Council","http://opendatacommunities.org/id/metropolitan-district-council/wolverhampton","TESCO-Seller_IST_1_240","54.99","EIP Locality 3","5999","Grant Payments","17/05/2018"
"Wolverhampton City Council","http://opendatacommunities.org/id/metropolitan-district-council/wolverhampton","Virgin Trains","182.00","Members Expenses","4112","Public Transport","17/05/2018"
"Wolverhampton City Council","http://opendatacommunities.org/id/metropolitan-district-council/wolverhampton","MBL SEMINARS","240.00","Central Training","8299","Training Expenses","17/05/2018"
"Wolverhampton City Council","http://opendatacommunities.org/id/metropolitan-district-council/wolverhampton","EE LIMITED R501","8.33","School Crossing Patrol","4812","Comms - Mobile Telephones","17/05/2018"
"Wolverhampton City Council","http://opendatacommunities.org/id/metropolitan-district-council/wolverhampton","Trainline","20.15","Legal Services","4112","Public Transport","17/05/2018"
"Wolverhampton City Council","http://opendatacommunities.org/id/metropolitan-district-council/wolverhampton","NATWEST BANK","50.00","Inclusion Support","6011","Financial Assistance In Exceptional Circ","17/05/2018"
"Wolverhampton City Council","http://opendatacommunities.org/id/metropolitan-district-council/wolverhampton","THE POST OFFICE","8.50","Collections","9402","Comms - Postage","17/05/2018"
"Wolverhampton City Council","http://opendatacommunities.org/id/metropolitan-district-council/wolverhampton","Amazon EU","14.56","EIP Locality 2","5969","Provisions (Not for resale)","17/05/2018"
"Wolverhampton City Council","http://opendatacommunities.org/id/metropolitan-district-council/wolverhampton","Amazon UK Marketplace","37.98","EIP Locality 2","5942","Equipment - Purchase","17/05/2018"
"Wolverhampton City Council","http://opendatacommunities.org/id/metropolitan-district-council/wolverhampton","Amazon UK Marketplace","75.96","EIP Locality 2","5942","Equipment - Purchase","17/05/2018"
"Wolverhampton City Council","http://opendatacommunities.org/id/metropolitan-district-council/wolverhampton","Amazon UK Marketplace","75.96","EIP Locality 2","5942","Equipment - Purchase","17/05/2018"
"Wolverhampton City Council","http://opendatacommunities.org/id/metropolitan-district-council/wolverhampton","000002200500000","250.00","Childrens with Disabilities Team","6011","Financial Assistance In Exceptional Circ","17/05/2018"
"Wolverhampton City Council","http://opendatacommunities.org/id/metropolitan-district-council/wolverhampton","Virgin Trains","219.80","Adoption and Residence Team & Allowances","4112","Public Transport","17/05/2018"
"Wolverhampton City Council","http://opendatacommunities.org/id/metropolitan-district-council/wolverhampton","Amazon UK Marketplace","46.63","Adoption and Residence Team & Allowances","5942","Equipment - Purchase","17/05/2018"
"Wolverhampton City Council","http://opendatacommunities.org/id/metropolitan-district-council/wolverhampton","Amazon UK Marketplace","10.39","Queen St Townscape Heritage (HLF)","5942","Materials","17/05/2018"
"Wolverhampton City Council","http://opendatacommunities.org/id/metropolitan-district-council/wolverhampton","CAFFE NERO","5.10","Economic Development","5812","Educ Trips, Holidays, Outings, Activity","17/05/2018"
"Wolverhampton City Council","http://opendatacommunities.org/id/metropolitan-district-council/wolverhampton","BILSTON CAMPUS","19.80","Education Business Partnership","8220","Catering","17/05/2018"
"Wolverhampton City Council","http://opendatacommunities.org/id/metropolitan-district-council/wolverhampton","Trainline","183.50","AES Staff Development","4112","Public Transport","17/05/2018"
"Wolverhampton City Council","http://opendatacommunities.org/id/metropolitan-district-council/wolverhampton","Trainline","202.50","AES Staff Development","4112","Public Transport","17/05/2018"
"Wolverhampton City Council","http://opendatacommunities.org/id/metropolitan-district-council/wolverhampton","SAINSBURYS SACAT (2340","2.60","Mayoral Expenses","5411","Hospitality","17/05/2018"
"Wolverhampton City Council","http://opendatacommunities.org/id/metropolitan-district-council/wolverhampton","PONY EXPRESS (UK) LTD","55.00","Mayoral Expenses","4215","Comms - Postage","17/05/2018"
"Wolverhampton City Council","http://opendatacommunities.org/id/metropolitan-district-council/wolverhampton","CREATIVE FRAMING","80.00","Mayoral Expenses","5971","Services - Professional Fees","17/05/2018"
"Wolverhampton City Council","http://opendatacommunities.org/id/metropolitan-district-council/wolverhampton","Trainline","-67.60","Admin & Support","4112","Public Transport","17/05/2018"
"Wolverhampton City Council","http://opendatacommunities.org/id/metropolitan-district-council/wolverhampton","ELECTRO SUPPLIES.C","35.57","City Direct","5732","Equipment - Purchase","17/05/2018"
"Wolverhampton City Council","http://opendatacommunities.org/id/metropolitan-district-council/wolverhampton","Trainline","74.90","LAC Education Team (LACE)","4112","Public Transport","17/05/2018"
"Wolverhampton City Council","http://opendatacommunities.org/id/metropolitan-district-council/wolverhampton","WP-CENTRAL TAXIS L","65.83","LAC Education Team (LACE)","4121","Client Transport","17/05/2018"
"Wolverhampton City Council","http://opendatacommunities.org/id/metropolitan-district-council/wolverhampton","Virgin Trains","146.00","Legal Services","4112","Public Transport","17/05/2018"
"Wolverhampton City Council","http://opendatacommunities.org/id/metropolitan-district-council/wolverhampton","Virgin Trains","54.20","LAC Team","4112","Public Transport","17/05/2018"
"Wolverhampton City Council","http://opendatacommunities.org/id/metropolitan-district-council/wolverhampton","Trainline","89.30","CIN/CP Social Work Unit - Area 4","4112","Section 17","17/05/2018"
"Wolverhampton City Council","http://opendatacommunities.org/id/metropolitan-district-council/wolverhampton","LLOYDS PHARMACY","16.58","Pest Control","5912","Materials","17/05/2018"
"Wolverhampton City Council","http://opendatacommunities.org/id/metropolitan-district-council/wolverhampton","ARGOS WOLVERHAMPTO","12.99","CIN/CP Social Work Unit - Area 1","5310","Equipment - Purchase","17/05/2018"
"Wolverhampton City Council","http://opendatacommunities.org/id/metropolitan-district-council/wolverhampton","EB  MUSIC MARK SUMMER","182.52","Music Support Team","7399","Equipment - Purchase","17/05/2018"
"Wolverhampton City Council","http://opendatacommunities.org/id/metropolitan-district-council/wolverhampton","POST OFFICE SHOP","12.64","Emergency Duty Team","9402","Comms - Postage","17/05/2018"
"Wolverhampton City Council","http://opendatacommunities.org/id/metropolitan-district-council/wolverhampton","Amazon EU","9.80","EIP Locality 5","5969","Equipment - Purchase","17/05/2018"
"Wolverhampton City Council","http://opendatacommunities.org/id/metropolitan-district-council/wolverhampton","EB  AN ORCHESTRAL REND","43.02","Foundation Studies","7399","Educ Trips, Holidays, Outings, Activity","17/05/2018"
"Wolverhampton City Council","http://opendatacommunities.org/id/metropolitan-district-council/wolverhampton","Amazon UK Marketplace","46.27","Creative Studies Delivery Area","5942","Equipment - Purchase","17/05/2018"
"Wolverhampton City Council","http://opendatacommunities.org/id/metropolitan-district-council/wolverhampton","Amazon UK Marketplace","89.95","Creative Studies Delivery Area","5942","Equipment - Purchase","17/05/2018"
"Wolverhampton City Council","http://opendatacommunities.org/id/metropolitan-district-council/wolverhampton","THE RANGE","20.82","LAC Transitions Team","5311","Client Allowances","17/05/2018"
"Wolverhampton City Council","http://opendatacommunities.org/id/metropolitan-district-council/wolverhampton","ASDA SUPERSTORE","10.42","Archives","5411","Equipment - Purchase","17/05/2018"
"Wolverhampton City Council","http://opendatacommunities.org/id/metropolitan-district-council/wolverhampton","THE FINANCIAL TIMES","278.20","Strategic Asset Management - General","5968","Subscriptions","17/05/2018"
"Wolverhampton City Council","http://opendatacommunities.org/id/metropolitan-district-council/wolverhampton","GO CARZ","17.10","CIN/CP Social Work Unit - Area 8","4121","Client Transport","17/05/2018"
"Wolverhampton City Council","http://opendatacommunities.org/id/metropolitan-district-council/wolverhampton","GO CARZ","16.80","CIN/CP Social Work Unit - Area 8","4121","Section 17","17/05/2018"
"Wolverhampton City Council","http://opendatacommunities.org/id/metropolitan-district-council/wolverhampton","Trainline","32.65","CIN/CP Social Work Unit - Area 8","4112","Public Transport","17/05/2018"
"Wolverhampton City Council","http://opendatacommunities.org/id/metropolitan-district-council/wolverhampton","Amazon EU","28.10","Technician","5969","Equipment - Purchase","16/05/2018"
"Wolverhampton City Council","http://opendatacommunities.org/id/metropolitan-district-council/wolverhampton","WM MORRISON FOOD.COM","74.38","Discretionary Fund","5411","Materials","16/05/2018"
"Wolverhampton City Council","http://opendatacommunities.org/id/metropolitan-district-council/wolverhampton","REDWINGS LODGE","36.08","Adult Services - West","7011","Services - Supplies & Services to users","16/05/2018"
"Wolverhampton City Council","http://opendatacommunities.org/id/metropolitan-district-council/wolverhampton","REDWINGS LODGE","11.95","Adult Services - West","7011","Services - Supplies & Services to users","16/05/2018"
"Wolverhampton City Council","http://opendatacommunities.org/id/metropolitan-district-council/wolverhampton","E H SMITH - CANNOCK (5","57.03","Technical Material","5211","Materials","16/05/2018"
"Wolverhampton City Council","http://opendatacommunities.org/id/metropolitan-district-council/wolverhampton","E H SMITH - CANNOCK (5","84.97","Technical Material","5211","Materials","16/05/2018"
"Wolverhampton City Council","http://opendatacommunities.org/id/metropolitan-district-council/wolverhampton","CURRYS ONLINE","332.50","LAC Transitions Team","5732","Independant Living Allowance","16/05/2018"
"Wolverhampton City Council","http://opendatacommunities.org/id/metropolitan-district-council/wolverhampton","TESCO STORES 5194","114.75","Towers Outdoor Education Centre","5411","Provisions (Not for resale)","16/05/2018"
"Wolverhampton City Council","http://opendatacommunities.org/id/metropolitan-district-council/wolverhampton","WOOD FINISHES DIRECT L","49.00","Towers Outdoor Education Centre","5198","Fixtures and Fittings - Purchases","16/05/2018"
"Wolverhampton City Council","http://opendatacommunities.org/id/metropolitan-district-council/wolverhampton","Amazon UK Marketplace","45.63","Queen St Townscape Heritage (HLF)","5942","Materials","16/05/2018"
"Wolverhampton City Council","http://opendatacommunities.org/id/metropolitan-district-council/wolverhampton","WILKO RETAIL LIMIT","5.50","Queen St Townscape Heritage (HLF)","5722","Materials","16/05/2018"
"Wolverhampton City Council","http://opendatacommunities.org/id/metropolitan-district-council/wolverhampton","WEST MIDS TRAINS OB","7.20","Economic Development","4112","Public Transport","16/05/2018"
"Wolverhampton City Council","http://opendatacommunities.org/id/metropolitan-district-council/wolverhampton","WM MORRISON 024","24.55","EIP Locality 2","5411","Provisions (Not for resale)","16/05/2018"
"Wolverhampton City Council","http://opendatacommunities.org/id/metropolitan-district-council/wolverhampton","ROYAL BK OF SCOTLAND","240.00","CIN/CP Social Work Unit - Area 6","6011","No Recourse to Public Funds","16/05/2018"
"Wolverhampton City Council","http://opendatacommunities.org/id/metropolitan-district-council/wolverhampton","Virgin Trains","202.00","Fostering Team & Allowances","4112","Public Transport","16/05/2018"
"Wolverhampton City Council","http://opendatacommunities.org/id/metropolitan-district-council/wolverhampton","CLOCKING SYSTEM","198.00","Ground Maintenance East","5085","Equipment - Purchase","16/05/2018"
"Wolverhampton City Council","http://opendatacommunities.org/id/metropolitan-district-council/wolverhampton","Amazon Prime","6.66","Headstart - Young People Engagement","5968","Subscriptions","16/05/2018"
"Wolverhampton City Council","http://opendatacommunities.org/id/metropolitan-district-council/wolverhampton","Trainline","36.70","AES Staff Development","4112","Public Transport","16/05/2018"
"Wolverhampton City Council","http://opendatacommunities.org/id/metropolitan-district-council/wolverhampton","Trainline","13.85","LAC Education Team (LACE)","4112","Public Transport","16/05/2018"
"Wolverhampton City Council","http://opendatacommunities.org/id/metropolitan-district-council/wolverhampton","ASDA SUPERSTORE","16.36","Youth Offending Team","5411","Provisions (Not for resale)","16/05/2018"
"Wolverhampton City Council","http://opendatacommunities.org/id/metropolitan-district-council/wolverhampton","Amazon EU","35.80","Strategic ICTS (ICT Serv Budget)","5969","Equipment - Purchase","16/05/2018"
"Wolverhampton City Council","http://opendatacommunities.org/id/metropolitan-district-council/wolverhampton","AMAZON SVCS EU-UK AMAZ","49.60","Strategic ICTS (ICT Serv Budget)","5942","Computing - Purchase of Hardware","16/05/2018"
"Wolverhampton City Council","http://opendatacommunities.org/id/metropolitan-district-council/wolverhampton","Amazon UK Marketplace","17.19","Creative Studies Delivery Area","5942","Equipment - Purchase","16/05/2018"
"Wolverhampton City Council","http://opendatacommunities.org/id/metropolitan-district-council/wolverhampton","Amazon UK Marketplace","13.98","Creative Studies Delivery Area","5942","Equipment - Purchase","16/05/2018"
"Wolverhampton City Council","http://opendatacommunities.org/id/metropolitan-district-council/wolverhampton","WATERSTONES","100.00","Wolverhampton Indoor and Open Market","5942","Books","16/05/2018"
"Wolverhampton City Council","http://opendatacommunities.org/id/metropolitan-district-council/wolverhampton","THE ENTERTAINER 15","20.00","Wolverhampton Indoor and Open Market","5945","Equipment - Purchase","16/05/2018"
"Wolverhampton City Council","http://opendatacommunities.org/id/metropolitan-district-council/wolverhampton","Trainline","196.30","CIN/CP Social Work Unit - Area 2","4112","Public Transport","16/05/2018"
"Wolverhampton City Council","http://opendatacommunities.org/id/metropolitan-district-council/wolverhampton","E01577600000000","20.00","EIP Locality 3","6011","Grant Payments","16/05/2018"
"Wolverhampton City Council","http://opendatacommunities.org/id/metropolitan-district-council/wolverhampton","FS160 CLAREGATE","5.05","Specialist Support Service - North","5541","Petrol","16/05/2018"
"Wolverhampton City Council","http://opendatacommunities.org/id/metropolitan-district-council/wolverhampton","Trainline","164.20","Head of Service - LAC","4112","Public Transport","16/05/2018"
"Wolverhampton City Council","http://opendatacommunities.org/id/metropolitan-district-council/wolverhampton","Trainline","113.00","Head of Service - CINCP","4112","Public Transport","16/05/2018"
"Wolverhampton City Council","http://opendatacommunities.org/id/metropolitan-district-council/wolverhampton","Trainline","169.90","CIN/CP Social Work Unit - Area 5","4112","Section 17","16/05/2018"
"Wolverhampton City Council","http://opendatacommunities.org/id/metropolitan-district-council/wolverhampton","Amazon EU","171.87","Duke Street Bungalows","5969","Stationery","16/05/2018"
"Wolverhampton City Council","http://opendatacommunities.org/id/metropolitan-district-council/wolverhampton","POST OFFICE COUNTER","5.99","CIN/CP Social Work Unit - Area 4","9402","Section 17","16/05/2018"
"Wolverhampton City Council","http://opendatacommunities.org/id/metropolitan-district-council/wolverhampton","SAINSBURYS","200.00","Duke Street Bungalows","6011","Provisions (Not for resale)","16/05/2018"
"Wolverhampton City Council","http://opendatacommunities.org/id/metropolitan-district-council/wolverhampton","TURNER EPS","73.33","Civic Centre Repairs & Maintenance","8911","Services - Professional Fees","16/05/2018"
"Wolverhampton City Council","http://opendatacommunities.org/id/metropolitan-district-council/wolverhampton","EE TOP UP VESTA","8.33","School Crossing Patrol","4814","Comms - Telephone Call charges","16/05/2018"
"Wolverhampton City Council","http://opendatacommunities.org/id/metropolitan-district-council/wolverhampton","J VAN VLIET BIRMINGHAM","82.40","Creative Studies Delivery Area","5399","Materials","16/05/2018"
"Wolverhampton City Council","http://opendatacommunities.org/id/metropolitan-district-council/wolverhampton","J VAN VLIET BIRMINGHAM","74.05","Creative Studies Delivery Area","5399","Materials","16/05/2018"
"Wolverhampton City Council","http://opendatacommunities.org/id/metropolitan-district-council/wolverhampton","J VAN VLIET BIRMINGHAM","28.85","Creative Studies Delivery Area","5399","Materials","16/05/2018"
"Wolverhampton City Council","http://opendatacommunities.org/id/metropolitan-district-council/wolverhampton","J VAN VLIET BIRMINGHAM","65.70","Creative Studies Delivery Area","5399","Materials for resale","16/05/2018"
"Wolverhampton City Council","http://opendatacommunities.org/id/metropolitan-district-council/wolverhampton","Trainline","49.00","CIN/CP Social Work Unit - Area 4","4112","Section 17","16/05/2018"
"Wolverhampton City Council","http://opendatacommunities.org/id/metropolitan-district-council/wolverhampton","SAINSBURYS","200.00","Duke Street Bungalows","6011","Provisions (Not for resale)","16/05/2018"
"Wolverhampton City Council","http://opendatacommunities.org/id/metropolitan-district-council/wolverhampton","UNTOUCHABLES","15.42","Cemeteries","5231","Materials","15/05/2018"
"Wolverhampton City Council","http://opendatacommunities.org/id/metropolitan-district-council/wolverhampton","Amazon UK Marketplace","6.68","Queen St Townscape Heritage (HLF)","5942","Materials","15/05/2018"
"Wolverhampton City Council","http://opendatacommunities.org/id/metropolitan-district-council/wolverhampton","Amazon UK Marketplace","1.25","Queen St Townscape Heritage (HLF)","5942","Materials","15/05/2018"
"Wolverhampton City Council","http://opendatacommunities.org/id/metropolitan-district-council/wolverhampton","Amazon UK Marketplace","6.99","Queen St Townscape Heritage (HLF)","5942","Materials","15/05/2018"
"Wolverhampton City Council","http://opendatacommunities.org/id/metropolitan-district-council/wolverhampton","WAITROSE 696","23.90","EIP Locality 4","5411","Grant Payments","15/05/2018"
"Wolverhampton City Council","http://opendatacommunities.org/id/metropolitan-district-council/wolverhampton","Trainline","17.55","AES Staff Development","4112","Public Transport","15/05/2018"
"Wolverhampton City Council","http://opendatacommunities.org/id/metropolitan-district-council/wolverhampton","POUNDLAND LTD 1463","8.33","City Direct","5310","Equipment - Purchase","15/05/2018"
"Wolverhampton City Council","http://opendatacommunities.org/id/metropolitan-district-council/wolverhampton","ITUNES.COM/BILL","2.07","LAC Education Team (LACE)","5735","Computing - Purchase of Software","15/05/2018"
"Wolverhampton City Council","http://opendatacommunities.org/id/metropolitan-district-council/wolverhampton","BOOTS","40.05","Foundation Studies","5912","Equipment - Purchase","15/05/2018"
"Wolverhampton City Council","http://opendatacommunities.org/id/metropolitan-district-council/wolverhampton","Amazon EU","12.50","EIP Locality 1","5969","Equipment - Purchase","15/05/2018"
"Wolverhampton City Council","http://opendatacommunities.org/id/metropolitan-district-council/wolverhampton","Amazon UK Marketplace","13.75","EIP Locality 1","5942","Books","15/05/2018"
"Wolverhampton City Council","http://opendatacommunities.org/id/metropolitan-district-council/wolverhampton","JOHNSTONES DEC CENTRE","25.02","Culwell Street Depot","5231","R&M - Departmental planned (external)","15/05/2018"
"Wolverhampton City Council","http://opendatacommunities.org/id/metropolitan-district-council/wolverhampton","Amazon Prime","-7.99","EIP Locality 6","5968","Subscriptions","15/05/2018"
"Wolverhampton City Council","http://opendatacommunities.org/id/metropolitan-district-council/wolverhampton","Amazon UK Marketplace","109.60","MASH","5942","Equipment - Purchase","15/05/2018"
"Wolverhampton City Council","http://opendatacommunities.org/id/metropolitan-district-council/wolverhampton","ASDA GROCERIES ONLINE","3.00","Upper Pendeford Farm Childrens Home","5411","Provisions (Not for resale)","15/05/2018"
"Wolverhampton City Council","http://opendatacommunities.org/id/metropolitan-district-council/wolverhampton","Audible Ltd","7.99","Upper Pendeford Farm Childrens Home","5968","Subscriptions","15/05/2018"
"Wolverhampton City Council","http://opendatacommunities.org/id/metropolitan-district-council/wolverhampton","ASDA GROCERIES ONLINE","66.44","Ernest Bold Court","5411","Provisions (Not for resale)","15/05/2018"
"Wolverhampton City Council","http://opendatacommunities.org/id/metropolitan-district-council/wolverhampton","B & Q 1243","37.72","Education Catering - General Overheads","5211","Materials","15/05/2018"
"Wolverhampton City Council","http://opendatacommunities.org/id/metropolitan-district-council/wolverhampton","CARVER/WOLVERHAMPTON/L","3.93","Culwell Street Depot","5211","R&M - Departmental planned (external)","15/05/2018"
"Wolverhampton City Council","http://opendatacommunities.org/id/metropolitan-district-council/wolverhampton","Virgin Trains","168.70","Private Sector Housing","4112","Public Transport","15/05/2018"
"Wolverhampton City Council","http://opendatacommunities.org/id/metropolitan-district-council/wolverhampton","ARGOS RETAIL GROUP","33.32","Bradley Resource Centre","5310","Equipment - Purchase","15/05/2018"
"Wolverhampton City Council","http://opendatacommunities.org/id/metropolitan-district-council/wolverhampton","Cross Country Trains","175.70","Head of Strategic Commissioning � People","4112","Public Transport","15/05/2018"
"Wolverhampton City Council","http://opendatacommunities.org/id/metropolitan-district-council/wolverhampton","Wix.com","93.13","Technical Support","5817","Computing - Purchase of Software","15/05/2018"
"Wolverhampton City Council","http://opendatacommunities.org/id/metropolitan-district-council/wolverhampton","BARCLAYS","90.00","EIP Locality 3","6011","Grant Payments","15/05/2018"
"Wolverhampton City Council","http://opendatacommunities.org/id/metropolitan-district-council/wolverhampton","Trainline","6.15","Adult Services - West","4112","Public Transport","15/05/2018"
"Wolverhampton City Council","http://opendatacommunities.org/id/metropolitan-district-council/wolverhampton","Amazon UK Marketplace","41.48","Children & Young People Support Costs","5942","Equipment - Purchase","15/05/2018"
"Wolverhampton City Council","http://opendatacommunities.org/id/metropolitan-district-council/wolverhampton","MOTHERCARE WORLD","87.50","LAC Transitions Team","5311","Client Allowances","15/05/2018"
"Wolverhampton City Council","http://opendatacommunities.org/id/metropolitan-district-council/wolverhampton","MONARCH CLEANERS LTD","324.70","Towers Outdoor Education Centre","7216","Laundry Expenses","15/05/2018"
"Wolverhampton City Council","http://opendatacommunities.org/id/metropolitan-district-council/wolverhampton","WWW.WASHINGNET.CO.UK","45.45","Towers Outdoor Education Centre","7399","Laundry Expenses","15/05/2018"
"Wolverhampton City Council","http://opendatacommunities.org/id/metropolitan-district-council/wolverhampton","SPAR SIOP TANDDERWEN","121.60","Towers Outdoor Education Centre","5411","Provisions (Not for resale)","15/05/2018"
"Wolverhampton City Council","http://opendatacommunities.org/id/metropolitan-district-council/wolverhampton","AMAZON SVCS EU-UK AMAZ","39.99","Queen St Townscape Heritage (HLF)","5942","Materials","15/05/2018"
"Wolverhampton City Council","http://opendatacommunities.org/id/metropolitan-district-council/wolverhampton","CITY TRIMS LIMITED","12.27","Education Catering - General Overheads","5039","Materials","15/05/2018"
"Wolverhampton City Council","http://opendatacommunities.org/id/metropolitan-district-council/wolverhampton","Cross Country Trains","75.00","Newly Qualified Social Workers","4112","Public Transport","15/05/2018"
"Wolverhampton City Council","http://opendatacommunities.org/id/metropolitan-district-council/wolverhampton","Cross Country Trains","37.20","Newly Qualified Social Workers","4112","Public Transport","15/05/2018"
"Wolverhampton City Council","http://opendatacommunities.org/id/metropolitan-district-council/wolverhampton","POST OFFICE COUNTER","6.50","Mayoral Expenses","9402","Comms - Postage","15/05/2018"
"Wolverhampton City Council","http://opendatacommunities.org/id/metropolitan-district-council/wolverhampton","Trainline","553.10","Document Centre - General","4112","Public Transport","14/05/2018"
"Wolverhampton City Council","http://opendatacommunities.org/id/metropolitan-district-council/wolverhampton","3C_ ECP Cornhill","5.00","GEN Y City Transnational","7523","Public Transport","14/05/2018"
"Wolverhampton City Council","http://opendatacommunities.org/id/metropolitan-district-council/wolverhampton","SCREWFIX WOLVERHAM","25.04","Cemeteries","5211","Materials","14/05/2018"
"Wolverhampton City Council","http://opendatacommunities.org/id/metropolitan-district-council/wolverhampton","STAFFORDSHIRE COUNTY C","60.00","EIP Locality 6","9399","Grant Payments","14/05/2018"
"Wolverhampton City Council","http://opendatacommunities.org/id/metropolitan-district-council/wolverhampton","GRO HM PASSPORT OFFICE","-18.50","Adoption and Residence Team & Allowances","9399","Services - Fees and Charges","14/05/2018"
"Wolverhampton City Council","http://opendatacommunities.org/id/metropolitan-district-council/wolverhampton","POST OFFICE COUNTER","7.30","Adoption and Residence Team & Allowances","9402","Comms - Postage","14/05/2018"
"Wolverhampton City Council","http://opendatacommunities.org/id/metropolitan-district-council/wolverhampton","WP-CENTRAL TAXIS L","200.00","Adoption and Residence Team & Allowances","4121","Client Transport","14/05/2018"
"Wolverhampton City Council","http://opendatacommunities.org/id/metropolitan-district-council/wolverhampton","EBUYER (UK) LTD","112.45","Head of Strategic Commissioning � People","5722","Equipment - Purchase","14/05/2018"
"Wolverhampton City Council","http://opendatacommunities.org/id/metropolitan-district-council/wolverhampton","Amazon EU","58.32","Upper Pendeford Farm Childrens Home","5969","Equipment - Purchase","14/05/2018"
"Wolverhampton City Council","http://opendatacommunities.org/id/metropolitan-district-council/wolverhampton","GO CARZ","13.10","LAC Team","4121","Client Transport","14/05/2018"
"Wolverhampton City Council","http://opendatacommunities.org/id/metropolitan-district-council/wolverhampton","GO CARZ","13.10","LAC Team","4121","Client Transport","14/05/2018"
"Wolverhampton City Council","http://opendatacommunities.org/id/metropolitan-district-council/wolverhampton","ASDA GROCERIES ONLINE","-2.64","Upper Pendeford Farm Childrens Home","5411","Provisions (Not for resale)","14/05/2018"
"Wolverhampton City Council","http://opendatacommunities.org/id/metropolitan-district-council/wolverhampton","DEBENHAMS","22.00","Mayoral Expenses","5311","Clothing / Uniforms","14/05/2018"
"Wolverhampton City Council","http://opendatacommunities.org/id/metropolitan-district-council/wolverhampton","DEBENHAMS","18.33","Mayoral Expenses","5311","Clothing / Uniforms","14/05/2018"
"Wolverhampton City Council","http://opendatacommunities.org/id/metropolitan-district-council/wolverhampton","W M MORRISON PLC","4.02","CIN/CP Social Work Unit - Area 6","5411","Provisions (Not for resale)","14/05/2018"
"Wolverhampton City Council","http://opendatacommunities.org/id/metropolitan-district-council/wolverhampton","000002200500000","240.00","CIN/CP Social Work Unit - Area 6","6011","Financial Assistance In Exceptional Circ","14/05/2018"
"Wolverhampton City Council","http://opendatacommunities.org/id/metropolitan-district-council/wolverhampton","AMAZON SVCS EU-UK AMAZ","11.49","Queen St Townscape Heritage (HLF)","5942","Materials","14/05/2018"
"Wolverhampton City Council","http://opendatacommunities.org/id/metropolitan-district-council/wolverhampton","WWW.FITNESS-SUPERSTORE","81.62","Aldersley Leisure Village","5941","Equipment - Purchase","14/05/2018"
"Wolverhampton City Council","http://opendatacommunities.org/id/metropolitan-district-council/wolverhampton","WEST MIDS TRAINS OB","9.30","Service Development Team","4112","Public Transport","14/05/2018"
"Wolverhampton City Council","http://opendatacommunities.org/id/metropolitan-district-council/wolverhampton","WM MORRISONS","9.50","Safeguarding Admin Resource","5411","Provisions (Not for resale)","14/05/2018"
"Wolverhampton City Council","http://opendatacommunities.org/id/metropolitan-district-council/wolverhampton","A & M CATERING SPECIAL","237.60","Civic Events","5812","Catering","14/05/2018"
"Wolverhampton City Council","http://opendatacommunities.org/id/metropolitan-district-council/wolverhampton","Amazon UK Marketplace","75.18","Towers Outdoor Education Centre","5942","Equipment - Purchase","14/05/2018"
"Wolverhampton City Council","http://opendatacommunities.org/id/metropolitan-district-council/wolverhampton","TESCO DELIVERY SAVER2","3.49","Towers Outdoor Education Centre","5968","Provisions (Not for resale)","14/05/2018"
"Wolverhampton City Council","http://opendatacommunities.org/id/metropolitan-district-council/wolverhampton","Amazon UK Marketplace","9.16","Towers Outdoor Education Centre","5942","Equipment - Purchase","14/05/2018"
"Wolverhampton City Council","http://opendatacommunities.org/id/metropolitan-district-council/wolverhampton","PTRC-TRAINING.CO.U","345.00","Black Country Transport Director","8220","Training Expenses","14/05/2018"
"Wolverhampton City Council","http://opendatacommunities.org/id/metropolitan-district-council/wolverhampton","DUNELM (SOFT FURNISHIN","65.99","Duke Street Bungalows","5714","Equipment - Purchase","14/05/2018"
"Wolverhampton City Council","http://opendatacommunities.org/id/metropolitan-district-council/wolverhampton","HOME BARGAINS WOLVERHA","24.99","Duke Street Bungalows","5251","Equipment - Purchase","14/05/2018"
"Wolverhampton City Council","http://opendatacommunities.org/id/metropolitan-district-council/wolverhampton","ASDA GROCERIES ONLINE","197.45","Upper Pendeford Farm Childrens Home","5411","Provisions (Not for resale)","14/05/2018"
"Wolverhampton City Council","http://opendatacommunities.org/id/metropolitan-district-council/wolverhampton","FACEBK 72SKPEJC22","600.00","Service Wide","7311","Marketing \ Non-staff advertising","14/05/2018"
"Wolverhampton City Council","http://opendatacommunities.org/id/metropolitan-district-council/wolverhampton","000002200500000","20.00","Carers Support","6011","Client Allowances","14/05/2018"
"Wolverhampton City Council","http://opendatacommunities.org/id/metropolitan-district-council/wolverhampton","IZ  D & K TRADING (MID","98.00","Wolverhampton Indoor and Open Market","5999","Equipment - Purchase","14/05/2018"
"Wolverhampton City Council","http://opendatacommunities.org/id/metropolitan-district-council/wolverhampton","POST OFFICE COUNTER","168.00","Carers Support","9402","Comms - Postage","14/05/2018"
"Wolverhampton City Council","http://opendatacommunities.org/id/metropolitan-district-council/wolverhampton","WIX.COM","93.13","Technical Support","5817","Computing - Purchase of Software","14/05/2018"
"Wolverhampton City Council","http://opendatacommunities.org/id/metropolitan-district-council/wolverhampton","Amazon UK Marketplace","9.68","Global Budgets","5942","Books","14/05/2018"
"Wolverhampton City Council","http://opendatacommunities.org/id/metropolitan-district-council/wolverhampton","WM MORRISONS","7.80","Safeguarding Admin Resource","5411","Provisions (Not for resale)","14/05/2018"
"Wolverhampton City Council","http://opendatacommunities.org/id/metropolitan-district-council/wolverhampton","THE POST OFFICE","1.77","CIN/CP Social Work Unit - Area 4","9402","Section 17","14/05/2018"
"Wolverhampton City Council","http://opendatacommunities.org/id/metropolitan-district-council/wolverhampton","WWW.PMGLTD.CO.UK","355.50","Central Training","7399","Training Expenses","14/05/2018"
"Wolverhampton City Council","http://opendatacommunities.org/id/metropolitan-district-council/wolverhampton","PREMIER INN","106.67","CIN/CP Social Work Unit - Area 8","3811","Section 17","14/05/2018"
"Wolverhampton City Council","http://opendatacommunities.org/id/metropolitan-district-council/wolverhampton","Amazon UK Marketplace","139.88","Members Expenses","5942","Equipment - Purchase","14/05/2018"
"Wolverhampton City Council","http://opendatacommunities.org/id/metropolitan-district-council/wolverhampton","RAPID ELECTRONICS","18.89","Technician","5732","Equipment - Purchase","14/05/2018"
"Wolverhampton City Council","http://opendatacommunities.org/id/metropolitan-district-council/wolverhampton","REDWINGS LODGE","79.90","Adult Services - West","7011","Accommodation Costs","14/05/2018"
"Wolverhampton City Council","http://opendatacommunities.org/id/metropolitan-district-council/wolverhampton","THE WORKS","-10.00","Headstart Phase 3","5310","Stationery","14/05/2018"
"Wolverhampton City Council","http://opendatacommunities.org/id/metropolitan-district-council/wolverhampton","WOLVERHAMPTON CC","3.33","Headstart Phase 3","7523","Parking Fees","14/05/2018"
"Wolverhampton City Council","http://opendatacommunities.org/id/metropolitan-district-council/wolverhampton","THE WORKS","2.50","Headstart Phase 3","5310","Stationery","14/05/2018"
"Wolverhampton City Council","http://opendatacommunities.org/id/metropolitan-district-council/wolverhampton","THE WORKS","10.00","Headstart Phase 3","5310","Stationery","14/05/2018"
"Wolverhampton City Council","http://opendatacommunities.org/id/metropolitan-district-council/wolverhampton","POUNDWORLD RETAIL","1.25","Headstart Phase 3","5310","Stationery","14/05/2018"
"Wolverhampton City Council","http://opendatacommunities.org/id/metropolitan-district-council/wolverhampton","MARKS&SPENCER SACAT","28.75","Mayoral Expenses","5411","Clothing / Uniforms","14/05/2018"
"Wolverhampton City Council","http://opendatacommunities.org/id/metropolitan-district-council/wolverhampton","Trainline","183.50","Legal Services","4112","Public Transport","11/05/2018"
"Wolverhampton City Council","http://opendatacommunities.org/id/metropolitan-district-council/wolverhampton","J VAN VLIET BIRMINGHAM","66.25","Creative Studies Delivery Area","5399","Materials for resale","11/05/2018"
"Wolverhampton City Council","http://opendatacommunities.org/id/metropolitan-district-council/wolverhampton","Trainline","195.50","CIN/CP Social Work Unit - Area 4","4112","Section 17","11/05/2018"
"Wolverhampton City Council","http://opendatacommunities.org/id/metropolitan-district-council/wolverhampton","WP-HEMMING GROUP L","329.00","Winter Maintenance","7399","Services - Fees and Charges","11/05/2018"
"Wolverhampton City Council","http://opendatacommunities.org/id/metropolitan-district-council/wolverhampton","E01510300000000","40.00","Delivery & OCE Development","6011","Financial Assistance In Exceptional Circ","11/05/2018"
"Wolverhampton City Council","http://opendatacommunities.org/id/metropolitan-district-council/wolverhampton","GRO HM PASSPORT OFFICE","-23.40","LAC Transitions Team","9399","Services - Fees and Charges","11/05/2018"
"Wolverhampton City Council","http://opendatacommunities.org/id/metropolitan-district-council/wolverhampton","Amazon UK Marketplace","9.99","Members Expenses","5942","Equipment - Purchase","11/05/2018"
"Wolverhampton City Council","http://opendatacommunities.org/id/metropolitan-district-council/wolverhampton","Amazon Prime","7.99","Members Expenses","5968","Subscriptions","11/05/2018"
"Wolverhampton City Council","http://opendatacommunities.org/id/metropolitan-district-council/wolverhampton","PAYPAL  HORNER SHEA","13.95","Northicote Farm","5099","Equipment - R & M","11/05/2018"
"Wolverhampton City Council","http://opendatacommunities.org/id/metropolitan-district-council/wolverhampton","TFM FARM & COUNTRY SUP","11.35","Northicote Farm","5399","Equipment - R & M","11/05/2018"
"Wolverhampton City Council","http://opendatacommunities.org/id/metropolitan-district-council/wolverhampton","ARGOS RETAIL GROUP","31.98","EIP Locality 2","5310","Grant Payments","11/05/2018"
"Wolverhampton City Council","http://opendatacommunities.org/id/metropolitan-district-council/wolverhampton","000002200500000","200.00","Childrens with Disabilities Team","6011","Financial Assistance In Exceptional Circ","11/05/2018"
"Wolverhampton City Council","http://opendatacommunities.org/id/metropolitan-district-council/wolverhampton","Amazon UK Marketplace","29.49","Towers Outdoor Education Centre","5942","Equipment - Purchase","11/05/2018"
"Wolverhampton City Council","http://opendatacommunities.org/id/metropolitan-district-council/wolverhampton","HARLECH FOODSERVICE LT","142.44","Towers Outdoor Education Centre","5422","Provisions (Not for resale)","11/05/2018"
"Wolverhampton City Council","http://opendatacommunities.org/id/metropolitan-district-council/wolverhampton","WYNNSTAY ARGICULTURAL","72.03","Towers Outdoor Education Centre","5311","Fixtures and Fittings - Purchases","11/05/2018"
"Wolverhampton City Council","http://opendatacommunities.org/id/metropolitan-district-council/wolverhampton","OEAP","320.00","Towers Outdoor Education Centre","5734","Equipment - Purchase","11/05/2018"
"Wolverhampton City Council","http://opendatacommunities.org/id/metropolitan-district-council/wolverhampton","ARGOS RETAIL GROUP","79.99","Delivery & OCE Development","5310","Equipment - Purchase","11/05/2018"
"Wolverhampton City Council","http://opendatacommunities.org/id/metropolitan-district-council/wolverhampton","Trainline","29.75","Admin & Support","4112","Public Transport","11/05/2018"
"Wolverhampton City Council","http://opendatacommunities.org/id/metropolitan-district-council/wolverhampton","Amazon UK Marketplace","19.97","Public Health Support Costs","5942","Catering","11/05/2018"
"Wolverhampton City Council","http://opendatacommunities.org/id/metropolitan-district-council/wolverhampton","GRO HM PASSPORT OFFICE","-18.50","Adoption and Residence Team & Allowances","9399","Services - Fees and Charges","11/05/2018"
"Wolverhampton City Council","http://opendatacommunities.org/id/metropolitan-district-council/wolverhampton","Amazon UK Marketplace","19.15","Central Baths","5942","Books","11/05/2018"
"Wolverhampton City Council","http://opendatacommunities.org/id/metropolitan-district-council/wolverhampton","Trainline","206.50","Intensive Family Support Team","4112","Public Transport","11/05/2018"
"Wolverhampton City Council","http://opendatacommunities.org/id/metropolitan-district-council/wolverhampton","SNAPFISH UK","5.60","LAC Team","7395","Financial Assistance In Exceptional Circ","11/05/2018"
"Wolverhampton City Council","http://opendatacommunities.org/id/metropolitan-district-council/wolverhampton","Amazon UK Marketplace","42.01","EIP Locality 5","5942","Equipment - Purchase","11/05/2018"
"Wolverhampton City Council","http://opendatacommunities.org/id/metropolitan-district-council/wolverhampton","LUL TICKET MACHINE","9.80","Research & Development","4112","Public Transport","11/05/2018"
"Wolverhampton City Council","http://opendatacommunities.org/id/metropolitan-district-council/wolverhampton","WWW.PMGLTD.CO.UK","395.00","School Improvement","7399","Equipment - Purchase","11/05/2018"
"Wolverhampton City Council","http://opendatacommunities.org/id/metropolitan-district-council/wolverhampton","CARVER/WOLVERHAMPTON/L","30.74","Culwell Street Depot","5211","Equipment - Purchase","11/05/2018"
"Wolverhampton City Council","http://opendatacommunities.org/id/metropolitan-district-council/wolverhampton","ARGOS RETAIL GROUP","83.32","EIP Locality 1","5310","Equipment - Purchase","11/05/2018"
"Wolverhampton City Council","http://opendatacommunities.org/id/metropolitan-district-council/wolverhampton","Virgin Trains","7.80","Children & Young People Support Costs","4112","Public Transport","11/05/2018"
"Wolverhampton City Council","http://opendatacommunities.org/id/metropolitan-district-council/wolverhampton","FSPRG.UK","5.05","Technical Support","5818","Subscriptions","11/05/2018"
"Wolverhampton City Council","http://opendatacommunities.org/id/metropolitan-district-council/wolverhampton","ASDA GROCERIES ONLINE","-3.00","Ernest Bold Court","5411","Provisions (Not for resale)","11/05/2018"
"Wolverhampton City Council","http://opendatacommunities.org/id/metropolitan-district-council/wolverhampton","ASDA GROCERIES ONLINE","78.73","Ernest Bold Court","5411","Provisions (Not for resale)","11/05/2018"
"Wolverhampton City Council","http://opendatacommunities.org/id/metropolitan-district-council/wolverhampton","TVLICENSING.CO.UK","150.50","Ernest Bold Court","7392","Services - General Licences","11/05/2018"
"Wolverhampton City Council","http://opendatacommunities.org/id/metropolitan-district-council/wolverhampton","WWW.ACCOUNTS@IIA.ORG.U","50.00","Central Training","8931","Training Expenses","11/05/2018"
"Wolverhampton City Council","http://opendatacommunities.org/id/metropolitan-district-council/wolverhampton","SCREWFIX DIRECT","20.29","Technical Material","5211","Materials","11/05/2018"
"Wolverhampton City Council","http://opendatacommunities.org/id/metropolitan-district-council/wolverhampton","WEST MID TRAVEL","98.25","Youth Offending Team","4131","Public Transport","10/05/2018"
"Wolverhampton City Council","http://opendatacommunities.org/id/metropolitan-district-council/wolverhampton","POST OFFICE COUNTER","36.72","Legal Services","9402","Comms - Postage","10/05/2018"
"Wolverhampton City Council","http://opendatacommunities.org/id/metropolitan-district-council/wolverhampton","Virgin Trains","62.20","Corporate Procurement Unit","4112","Public Transport","10/05/2018"
"Wolverhampton City Council","http://opendatacommunities.org/id/metropolitan-district-council/wolverhampton","WWW.ARGOS.CO.UK","25.94","Intensive Family Support Team","5310","Equipment - Purchase","10/05/2018"
"Wolverhampton City Council","http://opendatacommunities.org/id/metropolitan-district-council/wolverhampton","ASDA GROCERIES ONLINE","-0.18","Upper Pendeford Farm Childrens Home","5411","Provisions (Not for resale)","10/05/2018"
"Wolverhampton City Council","http://opendatacommunities.org/id/metropolitan-district-council/wolverhampton","ASDA GROCERIES ONLINE","265.20","Upper Pendeford Farm Childrens Home","5411","Provisions (Not for resale)","10/05/2018"
"Wolverhampton City Council","http://opendatacommunities.org/id/metropolitan-district-council/wolverhampton","WWW.ARGOS.CO.UK","146.88","EIP Locality 1","5310","Equipment - Purchase","10/05/2018"
"Wolverhampton City Council","http://opendatacommunities.org/id/metropolitan-district-council/wolverhampton","WWW.ARGOS.CO.UK","66.40","EIP Locality 1","5310","Grant Payments","10/05/2018"
"Wolverhampton City Council","http://opendatacommunities.org/id/metropolitan-district-council/wolverhampton","POST OFFICE COUNTER","67.00","Vulnerable Young Persons Team","9402","Comms - Postage","10/05/2018"
"Wolverhampton City Council","http://opendatacommunities.org/id/metropolitan-district-council/wolverhampton","SAINSBURYS 2040","47.50","Duke Street Bungalows","5411","Equipment - Purchase","10/05/2018"
"Wolverhampton City Council","http://opendatacommunities.org/id/metropolitan-district-council/wolverhampton","MAX SPIELMANN LTD","33.00","Head of Strategic Commissioning � People","7221","Publications","10/05/2018"
"Wolverhampton City Council","http://opendatacommunities.org/id/metropolitan-district-council/wolverhampton","Amazon UK Marketplace","14.20","Global Budgets","5942","Books","10/05/2018"
"Wolverhampton City Council","http://opendatacommunities.org/id/metropolitan-district-council/wolverhampton","FS160 CLAREGATE","4.19","Specialist Support Service - North","5541","Petrol","10/05/2018"
"Wolverhampton City Council","http://opendatacommunities.org/id/metropolitan-district-council/wolverhampton","NATWEST BANK","200.00","Democratic Support","6011","Public Transport","10/05/2018"
"Wolverhampton City Council","http://opendatacommunities.org/id/metropolitan-district-council/wolverhampton","FIRSTAID4LESS.CO.UK","20.55","Inclusion Support","5999","Equipment - Purchase","10/05/2018"
"Wolverhampton City Council","http://opendatacommunities.org/id/metropolitan-district-council/wolverhampton","WWW.GOV.UK","10.00","Legal Services","8999","Services - Professional Fees","10/05/2018"
"Wolverhampton City Council","http://opendatacommunities.org/id/metropolitan-district-council/wolverhampton","AA MEMBERSHIP","-24.67","Fleet Management","8675","Subscriptions","10/05/2018"
"Wolverhampton City Council","http://opendatacommunities.org/id/metropolitan-district-council/wolverhampton","Trainline","52.50","CIN/CP Social Work Unit - Area 4","4112","Section 17","10/05/2018"
"Wolverhampton City Council","http://opendatacommunities.org/id/metropolitan-district-council/wolverhampton","Trainline","255.40","CIN/CP Social Work Unit - Area 8","4112","Public Transport","10/05/2018"
"Wolverhampton City Council","http://opendatacommunities.org/id/metropolitan-district-council/wolverhampton","GRO HM PASSPORT OFFICE","9.25","LAC Transitions Team","9399","Services - Fees and Charges","10/05/2018"
"Wolverhampton City Council","http://opendatacommunities.org/id/metropolitan-district-council/wolverhampton","GRO HM PASSPORT OFFICE","23.40","LAC Transitions Team","9399","Services - Fees and Charges","10/05/2018"
"Wolverhampton City Council","http://opendatacommunities.org/id/metropolitan-district-council/wolverhampton","Virgin Trains","57.00","Mayoral Expenses","4112","Public Transport","10/05/2018"
"Wolverhampton City Council","http://opendatacommunities.org/id/metropolitan-district-council/wolverhampton","Amazon EU","27.22","Northicote Farm","5969","Clothing / Uniforms","10/05/2018"
"Wolverhampton City Council","http://opendatacommunities.org/id/metropolitan-district-council/wolverhampton","THE POST OFFICE","7.30","The Clangers & TV Puppets","9402","Comms - Postage","10/05/2018"
"Wolverhampton City Council","http://opendatacommunities.org/id/metropolitan-district-council/wolverhampton","LOYD 37 CHURCH STREET","200.00","EIP Locality 8","6011","Grant Payments","10/05/2018"
"Wolverhampton City Council","http://opendatacommunities.org/id/metropolitan-district-council/wolverhampton","ARGOS LTD","83.32","LAC Transitions Team","5310","Client Allowances","10/05/2018"
"Wolverhampton City Council","http://opendatacommunities.org/id/metropolitan-district-council/wolverhampton","BOC GASES","137.23","Civic Halls Non Direct Management A/C","5169","Materials","10/05/2018"
"Wolverhampton City Council","http://opendatacommunities.org/id/metropolitan-district-council/wolverhampton","Virgin Trains","54.30","Adoption and Residence Team & Allowances","4112","Public Transport","10/05/2018"
"Wolverhampton City Council","http://opendatacommunities.org/id/metropolitan-district-council/wolverhampton","TESCO STORES 6667","4.26","Towers Outdoor Education Centre","5411","Provisions (Not for resale)","10/05/2018"
"Wolverhampton City Council","http://opendatacommunities.org/id/metropolitan-district-council/wolverhampton","BLOXWICH  SST","7.20","Economic Development","4112","Public Transport","10/05/2018"
"Wolverhampton City Council","http://opendatacommunities.org/id/metropolitan-district-council/wolverhampton","POSTURITE (UK) LTD","33.98","Fostering Team & Allowances","5021","Furniture","10/05/2018"
"Wolverhampton City Council","http://opendatacommunities.org/id/metropolitan-district-council/wolverhampton","WM MORRISON 024","1.00","Bert Williams Leisure Centre","5411","Provisions (Not for resale)","10/05/2018"
"Wolverhampton City Council","http://opendatacommunities.org/id/metropolitan-district-council/wolverhampton","Trainline","13.85","LAC Education Team (LACE)","4112","Public Transport","10/05/2018"
"Wolverhampton City Council","http://opendatacommunities.org/id/metropolitan-district-council/wolverhampton","GOOGLE  ADWS9680351324","500.00","Communications & Marketing - General","5968","Subscriptions","09/05/2018"
"Wolverhampton City Council","http://opendatacommunities.org/id/metropolitan-district-council/wolverhampton","000002200500000","200.00","Headstart Phase 3","6011","Financial Assistance In Exceptional Circ","09/05/2018"
"Wolverhampton City Council","http://opendatacommunities.org/id/metropolitan-district-council/wolverhampton","WM MORRISON 024","6.00","Bert Williams Leisure Centre","5411","Provisions (Not for resale)","09/05/2018"
"Wolverhampton City Council","http://opendatacommunities.org/id/metropolitan-district-council/wolverhampton","Trainline","16.45","AES Staff Development","4112","Public Transport","09/05/2018"
"Wolverhampton City Council","http://opendatacommunities.org/id/metropolitan-district-council/wolverhampton","ASDA SUPERSTORE","18.13","Mayoral Expenses","5411","Provisions (Not for resale)","09/05/2018"
"Wolverhampton City Council","http://opendatacommunities.org/id/metropolitan-district-council/wolverhampton","Trainline","79.10","Admin & Support","4112","Public Transport","09/05/2018"
"Wolverhampton City Council","http://opendatacommunities.org/id/metropolitan-district-council/wolverhampton","EB  AEB FUNDING RULES","265.00","Admin & Support","7399","Training Expenses","09/05/2018"
"Wolverhampton City Council","http://opendatacommunities.org/id/metropolitan-district-council/wolverhampton","WOLVERHAMPTON TO","193.80","City Direct","4112","Public Transport","09/05/2018"
"Wolverhampton City Council","http://opendatacommunities.org/id/metropolitan-district-council/wolverhampton","NAMESCO","34.99","City Direct","4816","Computing - Purchase of Software","09/05/2018"
"Wolverhampton City Council","http://opendatacommunities.org/id/metropolitan-district-council/wolverhampton","WOLVERHAMPTON TO","15.60","Strategic ICTS (ICT Serv Budget)","4112","Public Transport","09/05/2018"
"Wolverhampton City Council","http://opendatacommunities.org/id/metropolitan-district-council/wolverhampton","Trainline","61.50","LAC Transitions Team","4112","Client Allowances","09/05/2018"
"Wolverhampton City Council","http://opendatacommunities.org/id/metropolitan-district-council/wolverhampton","WWW.ARGOS.CO.UK","25.94","Intensive Family Support Team","5310","Equipment - Purchase","09/05/2018"
"Wolverhampton City Council","http://opendatacommunities.org/id/metropolitan-district-council/wolverhampton","VIKING","159.99","Collections","5111","Equipment - Purchase","09/05/2018"
"Wolverhampton City Council","http://opendatacommunities.org/id/metropolitan-district-council/wolverhampton","GLOBE/PACKAGING EXPRES","49.65","Technical Material","5111","Materials","09/05/2018"
"Wolverhampton City Council","http://opendatacommunities.org/id/metropolitan-district-council/wolverhampton","HAMPSHIREFL","30.83","Children & Young People Support Costs","5949","Materials","09/05/2018"
"Wolverhampton City Council","http://opendatacommunities.org/id/metropolitan-district-council/wolverhampton","INSPIRE HIRE","255.00","Children & Young People Support Costs","5021","Furniture","09/05/2018"
"Wolverhampton City Council","http://opendatacommunities.org/id/metropolitan-district-council/wolverhampton","Trainline","59.50","Safeguarding Admin Resource","4112","Public Transport","09/05/2018"
"Wolverhampton City Council","http://opendatacommunities.org/id/metropolitan-district-council/wolverhampton","TESCO STORES 5194","133.16","Towers Outdoor Education Centre","5411","Provisions (Not for resale)","09/05/2018"
"Wolverhampton City Council","http://opendatacommunities.org/id/metropolitan-district-council/wolverhampton","FUEL CARD SERVICES LTD","366.35","Towers Outdoor Education Centre","7399","Petrol","09/05/2018"
"Wolverhampton City Council","http://opendatacommunities.org/id/metropolitan-district-council/wolverhampton","CHEMSOL CYMRU LTD","137.28","Towers Outdoor Education Centre","5199","Fixtures and Fittings - Purchases","09/05/2018"
"Wolverhampton City Council","http://opendatacommunities.org/id/metropolitan-district-council/wolverhampton","HN NUTTALL LTD","370.62","Towers Outdoor Education Centre","5085","Provisions (Not for resale)","09/05/2018"
"Wolverhampton City Council","http://opendatacommunities.org/id/metropolitan-district-council/wolverhampton","C L JONES HEAD OFFICE","350.20","Towers Outdoor Education Centre","5211","Fixtures and Fittings - Purchases","09/05/2018"
"Wolverhampton City Council","http://opendatacommunities.org/id/metropolitan-district-council/wolverhampton","Trainline","93.40","CIN/CP Social Work Unit - Area 6","4112","Public Transport","09/05/2018"
"Wolverhampton City Council","http://opendatacommunities.org/id/metropolitan-district-council/wolverhampton","Virgin Trains","77.60","Fostering Team & Allowances","4112","Public Transport","09/05/2018"
"Wolverhampton City Council","http://opendatacommunities.org/id/metropolitan-district-council/wolverhampton","J VAN VLIET BIRMINGHAM","26.45","Creative Studies Delivery Area","5399","Materials","09/05/2018"
"Wolverhampton City Council","http://opendatacommunities.org/id/metropolitan-district-council/wolverhampton","J VAN VLIET BIRMINGHAM","46.49","Creative Studies Delivery Area","5399","Materials","09/05/2018"
"Wolverhampton City Council","http://opendatacommunities.org/id/metropolitan-district-council/wolverhampton","J VAN VLIET BIRMINGHAM","87.47","Creative Studies Delivery Area","5399","Materials","09/05/2018"
"Wolverhampton City Council","http://opendatacommunities.org/id/metropolitan-district-council/wolverhampton","SAINSBURYS 2040","60.00","Duke Street Bungalows","5411","Equipment - Purchase","09/05/2018"
"Wolverhampton City Council","http://opendatacommunities.org/id/metropolitan-district-council/wolverhampton","Amazon Prime","7.99","Upper Pendeford Farm Childrens Home","5968","Subscriptions","09/05/2018"
"Wolverhampton City Council","http://opendatacommunities.org/id/metropolitan-district-council/wolverhampton","ASDA GROCERIES ONLINE","5.00","Upper Pendeford Farm Childrens Home","5411","Provisions (Not for resale)","09/05/2018"
"Wolverhampton City Council","http://opendatacommunities.org/id/metropolitan-district-council/wolverhampton","ASDA SUPERSTORE","44.74","EIP Locality 5","5411","Training Expenses","09/05/2018"
"Wolverhampton City Council","http://opendatacommunities.org/id/metropolitan-district-council/wolverhampton","WM MORRISON FOOD.COM","70.56","Creative Studies Delivery Area","5411","Provisions (Not for resale)","09/05/2018"
"Wolverhampton City Council","http://opendatacommunities.org/id/metropolitan-district-council/wolverhampton","Trainline","115.50","Research & Development","4112","Public Transport","09/05/2018"
"Wolverhampton City Council","http://opendatacommunities.org/id/metropolitan-district-council/wolverhampton","SCREWFIX DIRECT","129.19","Telecare","5211","Equipment - Purchase","09/05/2018"
"Wolverhampton City Council","http://opendatacommunities.org/id/metropolitan-district-council/wolverhampton","CIEH","289.00","Private Sector Housing","8699","Services - Professional Fees","09/05/2018"
"Wolverhampton City Council","http://opendatacommunities.org/id/metropolitan-district-council/wolverhampton","WWW.DAYEX.CO.UK","892.00","Learning Disabilities Management","5714","Equipment - Purchase","09/05/2018"
"Wolverhampton City Council","http://opendatacommunities.org/id/metropolitan-district-council/wolverhampton","MOBI TECHNO LTD","50.00","Technical Support","4812","Comms - Mobile Telephones","09/05/2018"
"Wolverhampton City Council","http://opendatacommunities.org/id/metropolitan-district-council/wolverhampton","Trainline","-3.60","Head of Service - LAC","4112","Public Transport","09/05/2018"
"Wolverhampton City Council","http://opendatacommunities.org/id/metropolitan-district-council/wolverhampton","VIRGIN MEDIS PYMTS","47.50","Community Enablement","4814","Comms - Telephone Call charges","09/05/2018"
"Wolverhampton City Council","http://opendatacommunities.org/id/metropolitan-district-council/wolverhampton","Trainline","55.55","Legal Services","4112","Public Transport","09/05/2018"
"Wolverhampton City Council","http://opendatacommunities.org/id/metropolitan-district-council/wolverhampton","NOVOTEL WOLVERHAMPTON","62.50","The Little Civic","7011","Accommodation Costs","08/05/2018"
"Wolverhampton City Council","http://opendatacommunities.org/id/metropolitan-district-council/wolverhampton","NOVOTEL WOLVERHAMPTON","62.50","The Little Civic","7011","Accommodation Costs","08/05/2018"
"Wolverhampton City Council","http://opendatacommunities.org/id/metropolitan-district-council/wolverhampton","NOVOTEL WOLVERHAMPTON","62.50","The Little Civic","7011","Accommodation Costs","08/05/2018"
"Wolverhampton City Council","http://opendatacommunities.org/id/metropolitan-district-council/wolverhampton","Amazon UK Marketplace","66.66","Strategic ICTS (ICT Serv Budget)","5942","Equipment - Purchase","08/05/2018"
"Wolverhampton City Council","http://opendatacommunities.org/id/metropolitan-district-council/wolverhampton","ASDA GROCERIES ONLINE","-257.58","Upper Pendeford Farm Childrens Home","5411","Provisions (Not for resale)","08/05/2018"
"Wolverhampton City Council","http://opendatacommunities.org/id/metropolitan-district-council/wolverhampton","EXPRESS PUBLISHING","123.93","Language Studies Delivery Area","5942","Books","08/05/2018"
"Wolverhampton City Council","http://opendatacommunities.org/id/metropolitan-district-council/wolverhampton","Amazon EU","291.67","Foundation Studies","5969","Equipment - Purchase","08/05/2018"
"Wolverhampton City Council","http://opendatacommunities.org/id/metropolitan-district-council/wolverhampton","Amazon EU","17.71","Foundation Studies","5969","Equipment - Purchase","08/05/2018"
"Wolverhampton City Council","http://opendatacommunities.org/id/metropolitan-district-council/wolverhampton","Amazon UK Marketplace","31.48","Educational Studies Delivery Area","5942","Equipment - Purchase","08/05/2018"
"Wolverhampton City Council","http://opendatacommunities.org/id/metropolitan-district-council/wolverhampton","FSPRG.UK","1369.90","Technical Support","5818","Subscriptions","08/05/2018"
"Wolverhampton City Council","http://opendatacommunities.org/id/metropolitan-district-council/wolverhampton","HOME BARGAINS","33.24","Duke Street Bungalows","5251","Equipment - Purchase","07/05/2018"
"Wolverhampton City Council","http://opendatacommunities.org/id/metropolitan-district-council/wolverhampton","CARD FACTORY","1.90","School Crossing Patrol","5947","Equipment - Purchase","07/05/2018"
"Wolverhampton City Council","http://opendatacommunities.org/id/metropolitan-district-council/wolverhampton","DEBENHAMS","18.67","School Crossing Patrol","5311","Equipment - Purchase","07/05/2018"
"Wolverhampton City Council","http://opendatacommunities.org/id/metropolitan-district-council/wolverhampton","WWW.SEVERNTRENTSEARCHE","335.00","Disposal Costs","4900","Services - Professional Fees","07/05/2018"
"Wolverhampton City Council","http://opendatacommunities.org/id/metropolitan-district-council/wolverhampton","WWW.SEVERNTRENTSEARCHE","130.00","Legal Services","4900","Services - Professional Fees","07/05/2018"
"Wolverhampton City Council","http://opendatacommunities.org/id/metropolitan-district-council/wolverhampton","THE COAL AUTHORITY","95.16","Disposal Costs","9399","Services - Professional Fees","07/05/2018"
"Wolverhampton City Council","http://opendatacommunities.org/id/metropolitan-district-council/wolverhampton","B&M RETAIL LTD","14.98","Duke Street Bungalows","5310","Equipment - Purchase","07/05/2018"
"Wolverhampton City Council","http://opendatacommunities.org/id/metropolitan-district-council/wolverhampton","SAINSBURYS","200.00","Duke Street Bungalows","6011","Provisions (Not for resale)","07/05/2018"
"Wolverhampton City Council","http://opendatacommunities.org/id/metropolitan-district-council/wolverhampton","SAINSBURYS","200.00","Duke Street Bungalows","6011","Provisions (Not for resale)","07/05/2018"
"Wolverhampton City Council","http://opendatacommunities.org/id/metropolitan-district-council/wolverhampton","Amazon EU","62.30","Northicote Farm","5969","Clothing / Uniforms","07/05/2018"
"Wolverhampton City Council","http://opendatacommunities.org/id/metropolitan-district-council/wolverhampton","TFM FARM & COUNTRY SUP","35.12","Northicote Farm","5399","Equipment - R & M","07/05/2018"
"Wolverhampton City Council","http://opendatacommunities.org/id/metropolitan-district-council/wolverhampton","TFM FARM & COUNTRY SUP","49.99","Northicote Farm","5399","Clothing / Uniforms","07/05/2018"
"Wolverhampton City Council","http://opendatacommunities.org/id/metropolitan-district-council/wolverhampton","Amazon UK Marketplace","16.99","Towers Outdoor Education Centre","5942","Equipment - Purchase","07/05/2018"
"Wolverhampton City Council","http://opendatacommunities.org/id/metropolitan-district-council/wolverhampton","Amazon UK Marketplace","17.18","EIP Locality 1","5942","Books","07/05/2018"
"Wolverhampton City Council","http://opendatacommunities.org/id/metropolitan-district-council/wolverhampton","REGISTRARS OFFICE","10.00","CIN/CP Social Work Unit - Area 2","8299","Section 17","07/05/2018"
"Wolverhampton City Council","http://opendatacommunities.org/id/metropolitan-district-council/wolverhampton","PAYPAL  123REGLIMIT","19.98","Technical Support","4816","Computing - Purchase of Software","07/05/2018"
"Wolverhampton City Council","http://opendatacommunities.org/id/metropolitan-district-council/wolverhampton","123-REG.CO.UK","0.99","Technical Support","4816","Computing - Purchase of Software","07/05/2018"
"Wolverhampton City Council","http://opendatacommunities.org/id/metropolitan-district-council/wolverhampton","Amazon UK Marketplace","21.98","Technical Support","5942","Computing - Purchase of Hardware","07/05/2018"
"Wolverhampton City Council","http://opendatacommunities.org/id/metropolitan-district-council/wolverhampton","WIX.COM","93.13","Technical Support","5968","Subscriptions","07/05/2018"
"Wolverhampton City Council","http://opendatacommunities.org/id/metropolitan-district-council/wolverhampton","PAYPAL  123REGLIMIT","9.99","Technical Support","4816","Computing - Purchase of Software","07/05/2018"
"Wolverhampton City Council","http://opendatacommunities.org/id/metropolitan-district-council/wolverhampton","Amazon UK Marketplace","19.40","Education And Access","5942","Materials","07/05/2018"
"Wolverhampton City Council","http://opendatacommunities.org/id/metropolitan-district-council/wolverhampton","Trainline","202.50","Headstart Phase 3","4112","Public Transport","07/05/2018"
"Wolverhampton City Council","http://opendatacommunities.org/id/metropolitan-district-council/wolverhampton","Trainline","365.50","Headstart Phase 3","4112","Public Transport","07/05/2018"
"Wolverhampton City Council","http://opendatacommunities.org/id/metropolitan-district-council/wolverhampton","PRODUCT SUPPORT AG","6.66","Headstart - Young People Engagement","5968","Computing - Maint Agreements","07/05/2018"
"Wolverhampton City Council","http://opendatacommunities.org/id/metropolitan-district-council/wolverhampton","PRODUCT SUPPORT AG","6.66","Headstart - Young People Engagement","5968","Computing - Maint Agreements","07/05/2018"
"Wolverhampton City Council","http://opendatacommunities.org/id/metropolitan-district-council/wolverhampton","Amazon UK Marketplace","17.72","Headstart - Young People Engagement","5942","Stationery","07/05/2018"
"Wolverhampton City Council","http://opendatacommunities.org/id/metropolitan-district-council/wolverhampton","YOUR BEAUTIQUE TRAININ","199.00","IMPACT","8299","Training Expenses","07/05/2018"
"Wolverhampton City Council","http://opendatacommunities.org/id/metropolitan-district-council/wolverhampton","WM MORRISON 024","3.00","Bert Williams Leisure Centre","5411","Provisions (Not for resale)","07/05/2018"
"Wolverhampton City Council","http://opendatacommunities.org/id/metropolitan-district-council/wolverhampton","EB  AEB FUNDING RULES","265.00","Admin & Support","7399","Training Expenses","07/05/2018"
"Wolverhampton City Council","http://opendatacommunities.org/id/metropolitan-district-council/wolverhampton","Wix.com","93.13","Technical Support","5817","Computing - Purchase of Software","07/05/2018"
"Wolverhampton City Council","http://opendatacommunities.org/id/metropolitan-district-council/wolverhampton","Amazon Prime","7.99","Education And Access","5968","Subscriptions","07/05/2018"
"Wolverhampton City Council","http://opendatacommunities.org/id/metropolitan-district-council/wolverhampton","ASDA GROCERIES ONLINE","-0.25","Ernest Bold Court","5411","Provisions (Not for resale)","07/05/2018"
"Wolverhampton City Council","http://opendatacommunities.org/id/metropolitan-district-council/wolverhampton","ASDA GROCERIES ONLINE","86.91","Ernest Bold Court","5411","Provisions (Not for resale)","07/05/2018"
"Wolverhampton City Council","http://opendatacommunities.org/id/metropolitan-district-council/wolverhampton","Trainline","205.00","CIN/CP Social Work Unit - Area 4","4112","No Recourse to Public Funds","07/05/2018"
"Wolverhampton City Council","http://opendatacommunities.org/id/metropolitan-district-council/wolverhampton","Trainline","81.00","Admin & Support","4112","Public Transport","07/05/2018"
"Wolverhampton City Council","http://opendatacommunities.org/id/metropolitan-district-council/wolverhampton","HOTJAR","80.99","City Direct","5045","Computing - Purchase of Hardware","07/05/2018"
"Wolverhampton City Council","http://opendatacommunities.org/id/metropolitan-district-council/wolverhampton","POST OFFICE COUNTER","226.56","LAC Transitions Team","9402","Client Allowances","07/05/2018"
"Wolverhampton City Council","http://opendatacommunities.org/id/metropolitan-district-council/wolverhampton","Amazon Prime","7.99","EIP Locality 6","5968","Subscriptions","07/05/2018"
"Wolverhampton City Council","http://opendatacommunities.org/id/metropolitan-district-council/wolverhampton","WP-CENTRAL TAXIS L","-12.00","Adoption and Residence Team & Allowances","4121","Client Transport","07/05/2018"
"Wolverhampton City Council","http://opendatacommunities.org/id/metropolitan-district-council/wolverhampton","WP-CENTRAL TAXIS L","160.00","Adoption and Residence Team & Allowances","4121","Client Transport","07/05/2018"
"Wolverhampton City Council","http://opendatacommunities.org/id/metropolitan-district-council/wolverhampton","WP-CENTRAL TAXIS L","297.00","Adoption and Residence Team & Allowances","4121","Client Transport","07/05/2018"
"Wolverhampton City Council","http://opendatacommunities.org/id/metropolitan-district-council/wolverhampton","GRAFITYP UK LTD","294.00","Document Centre - General","5965","R4007","07/05/2018"
"Wolverhampton City Council","http://opendatacommunities.org/id/metropolitan-district-council/wolverhampton","ASDA GROCERIES ONLINE","-0.18","Upper Pendeford Farm Childrens Home","5411","Provisions (Not for resale)","07/05/2018"
"Wolverhampton City Council","http://opendatacommunities.org/id/metropolitan-district-council/wolverhampton","ASDA GROCERIES ONLINE","257.76","Upper Pendeford Farm Childrens Home","5411","Provisions (Not for resale)","07/05/2018"
"Wolverhampton City Council","http://opendatacommunities.org/id/metropolitan-district-council/wolverhampton","W M MORRISONS.COM","77.47","Creative Studies Delivery Area","5411","Provisions (Not for resale)","07/05/2018"
"Wolverhampton City Council","http://opendatacommunities.org/id/metropolitan-district-council/wolverhampton","POST OFFICE COUNTER","24.12","EIP Locality 3","9402","Comms - Postage","07/05/2018"
"Wolverhampton City Council","http://opendatacommunities.org/id/metropolitan-district-council/wolverhampton","000002200500000","240.00","Childrens with Disabilities Team","6011","No Recourse to Public Funds","07/05/2018"
"Wolverhampton City Council","http://opendatacommunities.org/id/metropolitan-district-council/wolverhampton","ARGOS RETAIL GROUP","62.86","LAC Transitions Team","5310","Client Allowances","07/05/2018"
"Wolverhampton City Council","http://opendatacommunities.org/id/metropolitan-district-council/wolverhampton","Virgin Trains","54.50","Adoption and Residence Team & Allowances","4112","Public Transport","07/05/2018"
"Wolverhampton City Council","http://opendatacommunities.org/id/metropolitan-district-council/wolverhampton","Amazon UK Marketplace","11.87","Towers Outdoor Education Centre","5942","Equipment - Purchase","07/05/2018"
"Wolverhampton City Council","http://opendatacommunities.org/id/metropolitan-district-council/wolverhampton","VIKING","74.45","Archives","5111","Stationery","07/05/2018"
"Wolverhampton City Council","http://opendatacommunities.org/id/metropolitan-district-council/wolverhampton","Amazon UK Marketplace","80.90","Foundation Studies","5942","Equipment - Purchase","07/05/2018"
"Wolverhampton City Council","http://opendatacommunities.org/id/metropolitan-district-council/wolverhampton","FSPRG.COM","60.28","Service Wide","5817","Marketing \ Non-staff advertising","07/05/2018"
"Wolverhampton City Council","http://opendatacommunities.org/id/metropolitan-district-council/wolverhampton","Amazon UK Marketplace","4.12","EIP Locality 1","5942","Books","04/05/2018"
"Wolverhampton City Council","http://opendatacommunities.org/id/metropolitan-district-council/wolverhampton","Amazon UK Marketplace","3.15","EIP Locality 1","5942","Books","04/05/2018"
"Wolverhampton City Council","http://opendatacommunities.org/id/metropolitan-district-council/wolverhampton","TIPPERS WOLVERHAMPTON","41.63","Culwell Street Depot","5072","R&M - Departmental planned (external)","04/05/2018"
"Wolverhampton City Council","http://opendatacommunities.org/id/metropolitan-district-council/wolverhampton","B & Q 1243","32.25","Culwell Street Depot","5211","Equipment - Purchase","04/05/2018"
"Wolverhampton City Council","http://opendatacommunities.org/id/metropolitan-district-council/wolverhampton","Amazon UK Marketplace","94.62","Private Sector Housing","5942","Equipment - Purchase","04/05/2018"
"Wolverhampton City Council","http://opendatacommunities.org/id/metropolitan-district-council/wolverhampton","PREMIERPRINT","53.98","Head of Strategic Commissioning � People","5734","Computing - Purchase of Software","04/05/2018"
"Wolverhampton City Council","http://opendatacommunities.org/id/metropolitan-district-council/wolverhampton","WICKES","26.67","Learning Disabilities Management","5211","Equipment - Purchase","04/05/2018"
"Wolverhampton City Council","http://opendatacommunities.org/id/metropolitan-district-council/wolverhampton","Amazon UK Marketplace","58.33","Ernest Bold Court","5942","Equipment - Purchase","04/05/2018"
"Wolverhampton City Council","http://opendatacommunities.org/id/metropolitan-district-council/wolverhampton","FINDEL ED LTD","79.16","Specialist Support Service - North","5969","Services - Supplies & Services to users","04/05/2018"
"Wolverhampton City Council","http://opendatacommunities.org/id/metropolitan-district-council/wolverhampton","SEVERN TRENT WATER","114.90","Statutory Services (10RM)","4900","Electricity","04/05/2018"
"Wolverhampton City Council","http://opendatacommunities.org/id/metropolitan-district-council/wolverhampton","WWW.SEVERNTRENTSEARCHE","335.00","Legal Services","4900","Services - Professional Fees","04/05/2018"
"Wolverhampton City Council","http://opendatacommunities.org/id/metropolitan-district-council/wolverhampton","J VAN VLIET BIRMINGHAM","83.22","Creative Studies Delivery Area","5399","Materials for resale","04/05/2018"
"Wolverhampton City Council","http://opendatacommunities.org/id/metropolitan-district-council/wolverhampton","KONICA MINOLTA BUSINES","60.57","Music Support Team","7399","Equipment - R & M","04/05/2018"
"Wolverhampton City Council","http://opendatacommunities.org/id/metropolitan-district-council/wolverhampton","Amazon EU","24.96","Parks - Ranger Service","5969","Stationery","04/05/2018"
"Wolverhampton City Council","http://opendatacommunities.org/id/metropolitan-district-council/wolverhampton","Virgin Trains","37.30","Mayoral Expenses","4112","Public Transport","04/05/2018"
"Wolverhampton City Council","http://opendatacommunities.org/id/metropolitan-district-council/wolverhampton","Amazon UK Marketplace","37.48","Northicote Farm","5942","Clothing / Uniforms","04/05/2018"
"Wolverhampton City Council","http://opendatacommunities.org/id/metropolitan-district-council/wolverhampton","Amazon UK Marketplace","14.16","Northicote Farm","5942","Clothing / Uniforms","04/05/2018"
"Wolverhampton City Council","http://opendatacommunities.org/id/metropolitan-district-council/wolverhampton","GRO HM PASSPORT OFFICE","9.25","CIN/CP Social Work Unit - Area 2","9399","Services - Fees and Charges","04/05/2018"
"Wolverhampton City Council","http://opendatacommunities.org/id/metropolitan-district-council/wolverhampton","REGISTRARS OFFICE","11.00","Childrens with Disabilities Team","8299","Section 17","04/05/2018"
"Wolverhampton City Council","http://opendatacommunities.org/id/metropolitan-district-council/wolverhampton","000002200500000","240.00","CIN/CP Social Work Unit - Area 6","6011","No Recourse to Public Funds","04/05/2018"
"Wolverhampton City Council","http://opendatacommunities.org/id/metropolitan-district-council/wolverhampton","MICHAEL BACHYK","26.82","Catering Overhead Account","5422","Catering","04/05/2018"
"Wolverhampton City Council","http://opendatacommunities.org/id/metropolitan-district-council/wolverhampton","Amazon EU","18.79","Towers Outdoor Education Centre","5969","Equipment - Purchase","04/05/2018"
"Wolverhampton City Council","http://opendatacommunities.org/id/metropolitan-district-council/wolverhampton","Amazon UK Marketplace","4.81","Towers Outdoor Education Centre","5942","Equipment - Purchase","04/05/2018"
"Wolverhampton City Council","http://opendatacommunities.org/id/metropolitan-district-council/wolverhampton","STERMAT CAR AND VA","4428.81","Towers Outdoor Education Centre","5541","Hire of Vehicles","04/05/2018"
"Wolverhampton City Council","http://opendatacommunities.org/id/metropolitan-district-council/wolverhampton","Amazon UK Marketplace","7.11","Towers Outdoor Education Centre","5942","Fixtures and Fittings - Purchases","04/05/2018"
"Wolverhampton City Council","http://opendatacommunities.org/id/metropolitan-district-council/wolverhampton","Amazon UK Marketplace","44.26","Education And Access","5942","Materials","04/05/2018"
"Wolverhampton City Council","http://opendatacommunities.org/id/metropolitan-district-council/wolverhampton","Amazon UK Marketplace","23.12","Education And Access","5942","Materials","04/05/2018"
"Wolverhampton City Council","http://opendatacommunities.org/id/metropolitan-district-council/wolverhampton","Amazon UK Marketplace","5.52","Education And Access","5942","Books","04/05/2018"
"Wolverhampton City Council","http://opendatacommunities.org/id/metropolitan-district-council/wolverhampton","WWW.ARGOS.CO.UK","141.66","EIP Locality 4","5310","Grant Payments","04/05/2018"
"Wolverhampton City Council","http://opendatacommunities.org/id/metropolitan-district-council/wolverhampton","SNAP    GEOFILTERS","50.00","Communications & Marketing - General","7311","Marketing \ Non-staff advertising","04/05/2018"
"Wolverhampton City Council","http://opendatacommunities.org/id/metropolitan-district-council/wolverhampton","Amazon UK Marketplace","91.52","Communications & Marketing - General","5942","Books","04/05/2018"
"Wolverhampton City Council","http://opendatacommunities.org/id/metropolitan-district-council/wolverhampton","Amazon UK Marketplace","48.65","Communications & Marketing - General","5942","Books","04/05/2018"
"Wolverhampton City Council","http://opendatacommunities.org/id/metropolitan-district-council/wolverhampton","BEATSABAR MUSIC PROJEC","60.00","Youth Offending Team","5733","Equipment - Purchase","04/05/2018"
"Wolverhampton City Council","http://opendatacommunities.org/id/metropolitan-district-council/wolverhampton","BEATSABAR MUSIC PROJEC","205.00","Youth Offending Team","5733","Equipment - Purchase","04/05/2018"
"Wolverhampton City Council","http://opendatacommunities.org/id/metropolitan-district-council/wolverhampton","PARCELFORCE","13.14","Education And Access","4215","Comms - Postage","04/05/2018"
"Wolverhampton City Council","http://opendatacommunities.org/id/metropolitan-district-council/wolverhampton","WWW.PARTYRAMA.CO.UK","18.68","WV Active Marketing","5999","Equipment - Purchase","04/05/2018"
"Wolverhampton City Council","http://opendatacommunities.org/id/metropolitan-district-council/wolverhampton","Amazon UK Marketplace","17.10","WV Active Marketing","5942","Books","04/05/2018"
"Wolverhampton City Council","http://opendatacommunities.org/id/metropolitan-district-council/wolverhampton","WOLVERHAMPTON CC","3.33","IMPACT","7523","Car Allowances","04/05/2018"
"Wolverhampton City Council","http://opendatacommunities.org/id/metropolitan-district-council/wolverhampton","SPECSAVERSEVOUGB-","985.86","HR Advice","8043","Services - Professional Fees","04/05/2018"
"Wolverhampton City Council","http://opendatacommunities.org/id/metropolitan-district-council/wolverhampton","NAMESCO","58.92","Public Health Support Costs","4816","Computing - Purchase of Software","04/05/2018"
"Wolverhampton City Council","http://opendatacommunities.org/id/metropolitan-district-council/wolverhampton","Stourbridge Glass Engr","14.15","Mayoral Expenses","5950","Services - Professional Fees","04/05/2018"
"Wolverhampton City Council","http://opendatacommunities.org/id/metropolitan-district-council/wolverhampton","SAINSBURYS PFS (1340)","1.67","Mayoral Expenses","5541","Vehicle Maintenance - Repairs","04/05/2018"
"Wolverhampton City Council","http://opendatacommunities.org/id/metropolitan-district-council/wolverhampton","HMCOURTS-SERVICE.G","20.00","LAC Transitions Team","9222","Client Allowances","04/05/2018"
"Wolverhampton City Council","http://opendatacommunities.org/id/metropolitan-district-council/wolverhampton","PREMIER INN","67.99","Adoption and Residence Team & Allowances","3811","Services - Supplies & Services to users","04/05/2018"
"Wolverhampton City Council","http://opendatacommunities.org/id/metropolitan-district-council/wolverhampton","CURRYS S/S","21.66","Strategic ICTS (ICT Serv Budget)","5732","Equipment - Purchase","04/05/2018"
"Wolverhampton City Council","http://opendatacommunities.org/id/metropolitan-district-council/wolverhampton","Virgin Trains","7.90","Strategic Financial Services","4112","Public Transport","04/05/2018"
"Wolverhampton City Council","http://opendatacommunities.org/id/metropolitan-district-council/wolverhampton","Amazon EU","31.66","LAC Transitions Team","5969","Client Allowances","04/05/2018"
"Wolverhampton City Council","http://opendatacommunities.org/id/metropolitan-district-council/wolverhampton","BRITANNIA","255.00","CIN/CP Social Work Unit - Area 5","7011","Section 17","03/05/2018"
"Wolverhampton City Council","http://opendatacommunities.org/id/metropolitan-district-council/wolverhampton","COMPLETE CARE SHOP","49.90","Ernest Bold Court","5399","Equipment - Purchase","03/05/2018"
"Wolverhampton City Council","http://opendatacommunities.org/id/metropolitan-district-council/wolverhampton","WHITEPAPER.CO.UK","249.00","Central Training","5734","Training Expenses","03/05/2018"
"Wolverhampton City Council","http://opendatacommunities.org/id/metropolitan-district-council/wolverhampton","Trainline","15.75","Legal Services","4112","Public Transport","03/05/2018"
"Wolverhampton City Council","http://opendatacommunities.org/id/metropolitan-district-council/wolverhampton","THE COAL AUTHORITY","95.16","Legal Services","9399","Services - Professional Fees","03/05/2018"
"Wolverhampton City Council","http://opendatacommunities.org/id/metropolitan-district-council/wolverhampton","Trainline","52.50","CIN/CP Social Work Unit - Area 4","4112","Public Transport","03/05/2018"
"Wolverhampton City Council","http://opendatacommunities.org/id/metropolitan-district-council/wolverhampton","Amazon UK Marketplace","59.90","Members Expenses","5942","Equipment - Purchase","03/05/2018"
"Wolverhampton City Council","http://opendatacommunities.org/id/metropolitan-district-council/wolverhampton","Amazon EU","22.75","Northicote Farm","5969","Equipment - Purchase","03/05/2018"
"Wolverhampton City Council","http://opendatacommunities.org/id/metropolitan-district-council/wolverhampton","PAYPAL  SCREWFIX","46.67","Northicote Farm","5099","Equipment - R & M","03/05/2018"
"Wolverhampton City Council","http://opendatacommunities.org/id/metropolitan-district-council/wolverhampton","PAYPAL  HORNER SHEA","129.95","Northicote Farm","5099","Equipment - R & M","03/05/2018"
"Wolverhampton City Council","http://opendatacommunities.org/id/metropolitan-district-council/wolverhampton","GOLD SUPERSTORE","18.00","Northicote Farm","5251","Equipment - Purchase","03/05/2018"
"Wolverhampton City Council","http://opendatacommunities.org/id/metropolitan-district-council/wolverhampton","Amazon EU","54.45","Northicote Farm","5969","Clothing / Uniforms","03/05/2018"
"Wolverhampton City Council","http://opendatacommunities.org/id/metropolitan-district-council/wolverhampton","WWW.ROYALIMAGES.CO.UK","103.50","Mayoral Expenses","2741","Fixtures and Fittings - Purchases","03/05/2018"
"Wolverhampton City Council","http://opendatacommunities.org/id/metropolitan-district-council/wolverhampton","Amazon UK Marketplace","17.74","EIP Locality 8","5942","Equipment - Purchase","03/05/2018"
"Wolverhampton City Council","http://opendatacommunities.org/id/metropolitan-district-council/wolverhampton","Amazon UK Marketplace","23.99","Safeguarding Admin Resource","5942","Books","03/05/2018"
"Wolverhampton City Council","http://opendatacommunities.org/id/metropolitan-district-council/wolverhampton","POST OFFICE COUNTER","6.50","Adoption and Residence Team & Allowances","9402","Comms - Postage","03/05/2018"
"Wolverhampton City Council","http://opendatacommunities.org/id/metropolitan-district-council/wolverhampton","Amazon UK Marketplace","5.98","Education And Access","5942","Books","03/05/2018"
"Wolverhampton City Council","http://opendatacommunities.org/id/metropolitan-district-council/wolverhampton","Amazon UK Marketplace","15.48","Education And Access","5942","Materials","03/05/2018"
"Wolverhampton City Council","http://opendatacommunities.org/id/metropolitan-district-council/wolverhampton","Amazon UK Marketplace","4.20","Education And Access","5942","Books","03/05/2018"
"Wolverhampton City Council","http://opendatacommunities.org/id/metropolitan-district-council/wolverhampton","HOME BARGAINS TELFORD","3.16","Aldersley Leisure Village","5251","Equipment - Purchase","03/05/2018"
"Wolverhampton City Council","http://opendatacommunities.org/id/metropolitan-district-council/wolverhampton","HOME BARGAINS TELFORD","26.00","Aldersley Leisure Village","5251","Equipment - Purchase","03/05/2018"
"Wolverhampton City Council","http://opendatacommunities.org/id/metropolitan-district-council/wolverhampton","CIMSPA","133.33","Aldersley Leisure Village","8699","Subscriptions","03/05/2018"
"Wolverhampton City Council","http://opendatacommunities.org/id/metropolitan-district-council/wolverhampton","Trainline","123.50","GEN Y City Transnational","4112","Public Transport","03/05/2018"
"Wolverhampton City Council","http://opendatacommunities.org/id/metropolitan-district-council/wolverhampton","WWW.ISTOCK.COM","310.00","Communications & Marketing - General","5971","Services - Professional Fees","03/05/2018"
"Wolverhampton City Council","http://opendatacommunities.org/id/metropolitan-district-council/wolverhampton","WWW.TONERGIANT.CO.UK","136.07","Headstart Hubs","5943","Stationery","03/05/2018"
"Wolverhampton City Council","http://opendatacommunities.org/id/metropolitan-district-council/wolverhampton","WOLVERHAMPTON TO","63.80","IMPACT","4112","Public Transport","03/05/2018"
"Wolverhampton City Council","http://opendatacommunities.org/id/metropolitan-district-council/wolverhampton","NAMESCO","58.92","Service Development Team","4816","Computing - Purchase of Software","03/05/2018"
"Wolverhampton City Council","http://opendatacommunities.org/id/metropolitan-district-council/wolverhampton","NAMESCO","58.92","Service Development Team","4816","Computing - Purchase of Software","03/05/2018"
"Wolverhampton City Council","http://opendatacommunities.org/id/metropolitan-district-council/wolverhampton","J P LENNARD LTD","291.90","Central Baths","5941","Equipment - Purchase","03/05/2018"
"Wolverhampton City Council","http://opendatacommunities.org/id/metropolitan-district-council/wolverhampton","JAKWATERSYS","265.00","Central Baths","5996","Equipment - Purchase","03/05/2018"
"Wolverhampton City Council","http://opendatacommunities.org/id/metropolitan-district-council/wolverhampton","Virgin Trains","116.20","Adoption and Residence Team & Allowances","4112","Public Transport","03/05/2018"
"Wolverhampton City Council","http://opendatacommunities.org/id/metropolitan-district-council/wolverhampton","GENOPRO","1360.55","Strategic ICTS (ICT Serv Budget)","5734","Computing - Purchase of Software","03/05/2018"
"Wolverhampton City Council","http://opendatacommunities.org/id/metropolitan-district-council/wolverhampton","Amazon EU","14.36","Educational Studies Delivery Area","5969","Books","03/05/2018"
"Wolverhampton City Council","http://opendatacommunities.org/id/metropolitan-district-council/wolverhampton","Trainline","31.55","CIN/CP Social Work Unit - Area 8","4112","Public Transport","03/05/2018"
"Wolverhampton City Council","http://opendatacommunities.org/id/metropolitan-district-council/wolverhampton","Virgin Trains","184.90","Private Sector Housing","4112","Public Transport","03/05/2018"
"Wolverhampton City Council","http://opendatacommunities.org/id/metropolitan-district-council/wolverhampton","LIDDELL ELECTRICAL DIS","5.10","Transportation General","5065","Equipment - R & M","03/05/2018"
"Wolverhampton City Council","http://opendatacommunities.org/id/metropolitan-district-council/wolverhampton","PAYPAL  123REGLIMIT","9.99","Technical Support","4816","Subscriptions","03/05/2018"
"Wolverhampton City Council","http://opendatacommunities.org/id/metropolitan-district-council/wolverhampton","ASDA SUPERSTORE","100.00","CIN/CP Social Work Unit - Area 4","5411","No Recourse to Public Funds","02/05/2018"
"Wolverhampton City Council","http://opendatacommunities.org/id/metropolitan-district-council/wolverhampton","ASDA SUPERSTORE","100.00","CIN/CP Social Work Unit - Area 4","5411","No Recourse to Public Funds","02/05/2018"
"Wolverhampton City Council","http://opendatacommunities.org/id/metropolitan-district-council/wolverhampton","POST OFFICE COUNTER","13.92","Arbor Scheme","9402","Comms - Postage","02/05/2018"
"Wolverhampton City Council","http://opendatacommunities.org/id/metropolitan-district-council/wolverhampton","HOME BARGAINS","4.75","Parks - Ranger Service","5251","Cleaning Supplies and Materials","02/05/2018"
"Wolverhampton City Council","http://opendatacommunities.org/id/metropolitan-district-council/wolverhampton","BLACKCOUNTRYMETAL","55.48","Parks - Ranger Service","7333","Equipment - Purchase","02/05/2018"
"Wolverhampton City Council","http://opendatacommunities.org/id/metropolitan-district-council/wolverhampton","Amazon EU","36.00","Northicote Farm","5969","Equipment - Purchase","02/05/2018"
"Wolverhampton City Council","http://opendatacommunities.org/id/metropolitan-district-council/wolverhampton","PAYPAL  ANGLIANLEPI","21.12","Northicote Farm","5169","Equipment - Purchase","02/05/2018"
"Wolverhampton City Council","http://opendatacommunities.org/id/metropolitan-district-council/wolverhampton","Hotel on Booking.com","384.00","IMPACT","7011","Services - Supplies & Services to users","02/05/2018"
"Wolverhampton City Council","http://opendatacommunities.org/id/metropolitan-district-council/wolverhampton","WWW.ICO.GOV.UK","35.00","Register Office","9399","Services - Fees and Charges","02/05/2018"
"Wolverhampton City Council","http://opendatacommunities.org/id/metropolitan-district-council/wolverhampton","Amazon UK Marketplace","7.62","Bert Williams Leisure Centre","5942","Books","02/05/2018"
"Wolverhampton City Council","http://opendatacommunities.org/id/metropolitan-district-council/wolverhampton","SAINSBURYS PFS (1340)","1.67","Mayoral Expenses","5541","Vehicle Maintenance - Repairs","02/05/2018"
"Wolverhampton City Council","http://opendatacommunities.org/id/metropolitan-district-council/wolverhampton","GO CARZ","28.92","LAC Education Team (LACE)","4121","Client Transport","02/05/2018"
"Wolverhampton City Council","http://opendatacommunities.org/id/metropolitan-district-council/wolverhampton","Amazon UK Marketplace","19.99","EIP Locality 6","5942","Computing - Consumables","02/05/2018"
"Wolverhampton City Council","http://opendatacommunities.org/id/metropolitan-district-council/wolverhampton","Amazon UK Marketplace","6.92","Headstart - Young People Engagement","5942","Materials","02/05/2018"
"Wolverhampton City Council","http://opendatacommunities.org/id/metropolitan-district-council/wolverhampton","PAYPAL  123REGLIMIT","29.97","Technical Support","4816","Computing - Purchase of Software","02/05/2018"
"Wolverhampton City Council","http://opendatacommunities.org/id/metropolitan-district-council/wolverhampton","WAITROSE 696","4.42","EIP Locality 3","5411","Grant Payments","02/05/2018"
"Wolverhampton City Council","http://opendatacommunities.org/id/metropolitan-district-council/wolverhampton","PAYPAL  POLY POSTAL","106.00","Environmental Health - Pub Prot - Gen","7399","Equipment - Purchase","02/05/2018"
"Wolverhampton City Council","http://opendatacommunities.org/id/metropolitan-district-council/wolverhampton","MAYFAIR CARPETS","259.00","CIN/CP Social Work Unit - Area 7","5713","Section 17","02/05/2018"
"Wolverhampton City Council","http://opendatacommunities.org/id/metropolitan-district-council/wolverhampton","WWW.LOCAL.GOV.UK","428.00","Central Training","7399","Training Expenses","02/05/2018"
"Wolverhampton City Council","http://opendatacommunities.org/id/metropolitan-district-council/wolverhampton","WILKO RETAIL LIMIT","15.83","Children & Family Contact Services","5722","Equipment - Purchase","02/05/2018"
"Wolverhampton City Council","http://opendatacommunities.org/id/metropolitan-district-council/wolverhampton","J VAN VLIET BIRMINGHAM","57.40","Creative Studies Delivery Area","5399","Materials for resale","02/05/2018"
"Wolverhampton City Council","http://opendatacommunities.org/id/metropolitan-district-council/wolverhampton","J VAN VLIET BIRMINGHAM","53.08","Creative Studies Delivery Area","5399","Materials","02/05/2018"
"Wolverhampton City Council","http://opendatacommunities.org/id/metropolitan-district-council/wolverhampton","J VAN VLIET BIRMINGHAM","97.95","Creative Studies Delivery Area","5399","Materials","02/05/2018"
"Wolverhampton City Council","http://opendatacommunities.org/id/metropolitan-district-council/wolverhampton","J VAN VLIET BIRMINGHAM","21.39","Creative Studies Delivery Area","5399","Materials","02/05/2018"
"Wolverhampton City Council","http://opendatacommunities.org/id/metropolitan-district-council/wolverhampton","BRITANNIA","52.00","CIN/CP Social Work Unit - Area 5","7011","Section 17","02/05/2018"
"Wolverhampton City Council","http://opendatacommunities.org/id/metropolitan-district-council/wolverhampton","WWW.WMCA.CO.UK","56.50","CIN/CP Social Work Unit - Area 5","9399","Section 17","02/05/2018"
"Wolverhampton City Council","http://opendatacommunities.org/id/metropolitan-district-council/wolverhampton","IKEA LIMITED","27.71","LAC Transitions Team","5712","Accommodation Costs","02/05/2018"
"Wolverhampton City Council","http://opendatacommunities.org/id/metropolitan-district-council/wolverhampton","Trainline","-36.80","CIN/CP Social Work Unit - Area 3","4112","Client Transport","02/05/2018"
"Wolverhampton City Council","http://opendatacommunities.org/id/metropolitan-district-council/wolverhampton","Virgin Trains","118.70","Research & Development","4112","Public Transport","02/05/2018"
"Wolverhampton City Council","http://opendatacommunities.org/id/metropolitan-district-council/wolverhampton","WWW.ARGOS.CO.UK","106.92","EIP Locality 8","5310","Grant Payments","02/05/2018"
"Wolverhampton City Council","http://opendatacommunities.org/id/metropolitan-district-council/wolverhampton","Amazon UK Marketplace","6.48","EIP Locality 8","5942","Equipment - Purchase","02/05/2018"
"Wolverhampton City Council","http://opendatacommunities.org/id/metropolitan-district-council/wolverhampton","PREMIER INN","-78.74","Safeguarding Admin Resource","3811","Services - Supplies & Services to users","02/05/2018"
"Wolverhampton City Council","http://opendatacommunities.org/id/metropolitan-district-council/wolverhampton","PAYPAL  GLFASHIONSL","3.28","Business Manager - Place","5611","Equipment - Purchase","02/05/2018"
"Wolverhampton City Council","http://opendatacommunities.org/id/metropolitan-district-council/wolverhampton","NATWEST BANK","50.00","EIP Locality 2","6011","Equipment - Purchase","02/05/2018"
"Wolverhampton City Council","http://opendatacommunities.org/id/metropolitan-district-council/wolverhampton","ROYAL BK OF SCOTLAND","250.00","CIN/CP Social Work Unit - Area 6","6011","Financial Assistance In Exceptional Circ","02/05/2018"
"Wolverhampton City Council","http://opendatacommunities.org/id/metropolitan-district-council/wolverhampton","GOOGLE  SVCSAPPS_wolve","9.90","Visitor Economy - Development","5968","Subscriptions","02/05/2018"
"Wolverhampton City Council","http://opendatacommunities.org/id/metropolitan-district-council/wolverhampton","PAYPAL  THEROTA","171.09","Visitor Economy - Development","5735","Computing - Purchase of Software","02/05/2018"
"Wolverhampton City Council","http://opendatacommunities.org/id/metropolitan-district-council/wolverhampton","POST OFFICE COUNTER","5.75","Adoption and Residence Team & Allowances","9402","Comms - Postage","02/05/2018"
"Wolverhampton City Council","http://opendatacommunities.org/id/metropolitan-district-council/wolverhampton","Amazon EU","45.82","Strategic ICTS (ICT Serv Budget)","5969","Equipment - Purchase","02/05/2018"
"Wolverhampton City Council","http://opendatacommunities.org/id/metropolitan-district-council/wolverhampton","Amazon UK Marketplace","4.90","LAC Transitions Team","5942","Books","02/05/2018"
"Wolverhampton City Council","http://opendatacommunities.org/id/metropolitan-district-council/wolverhampton","SUPERFUNSTUFFUK","37.90","Central Baths","5945","Equipment - Purchase","02/05/2018"
"Wolverhampton City Council","http://opendatacommunities.org/id/metropolitan-district-council/wolverhampton","WWW.ARGOS.CO.UK","43.94","Intensive Family Support Team","5310","Equipment - Purchase","02/05/2018"
"Wolverhampton City Council","http://opendatacommunities.org/id/metropolitan-district-council/wolverhampton","Amazon UK Marketplace","4.99","Educational Studies Delivery Area","5942","Books","02/05/2018"
"Wolverhampton City Council","http://opendatacommunities.org/id/metropolitan-district-council/wolverhampton","SCREWFIX DIRECT","31.66","Foundation Studies","5211","Equipment - Purchase","02/05/2018"
"Wolverhampton City Council","http://opendatacommunities.org/id/metropolitan-district-council/wolverhampton","ALDI 94 772","10.58","Specialist Support Service - North","5411","Catering","02/05/2018"
"Wolverhampton City Council","http://opendatacommunities.org/id/metropolitan-district-council/wolverhampton","HATCHET INN","65.83","SEN Sensory Inclusion","5812","Equipment - Purchase","02/05/2018"
"Wolverhampton City Council","http://opendatacommunities.org/id/metropolitan-district-council/wolverhampton","Virgin Trains","7.80","Children & Young People Support Costs","4112","Public Transport","02/05/2018"
"Wolverhampton City Council","http://opendatacommunities.org/id/metropolitan-district-council/wolverhampton","CURRYS ONLINE","49.95","Education Catering - General Overheads","5732","Equipment - Purchase","02/05/2018"
"Wolverhampton City Council","http://opendatacommunities.org/id/metropolitan-district-council/wolverhampton","HOMEBASE LTD 103","6.74","Blakenhall Commty & Healthy Living Ctr","5211","Materials","02/05/2018"
"Wolverhampton City Council","http://opendatacommunities.org/id/metropolitan-district-council/wolverhampton","CO-OP GROUP 070228","6.04","Towers Outdoor Education Centre","5411","Provisions (Not for resale)","02/05/2018"
"Wolverhampton City Council","http://opendatacommunities.org/id/metropolitan-district-council/wolverhampton","TESCO STORES 5194","103.90","Towers Outdoor Education Centre","5411","Provisions (Not for resale)","02/05/2018"
"Wolverhampton City Council","http://opendatacommunities.org/id/metropolitan-district-council/wolverhampton","WWW.ARGOS.CO.UK","125.78","EIP Locality 4","5310","Grant Payments","02/05/2018"
"Wolverhampton City Council","http://opendatacommunities.org/id/metropolitan-district-council/wolverhampton","Amazon UK Marketplace","6.63","Headstart - Young People Engagement","5942","Materials","02/05/2018"
"Wolverhampton City Council","http://opendatacommunities.org/id/metropolitan-district-council/wolverhampton","Amazon UK Marketplace","14.74","Headstart - Young People Engagement","5942","Stationery","02/05/2018"
"Wolverhampton City Council","http://opendatacommunities.org/id/metropolitan-district-council/wolverhampton","Amazon UK Marketplace","34.95","EIP Locality 8","5942","Equipment - Purchase","01/05/2018"
"Wolverhampton City Council","http://opendatacommunities.org/id/metropolitan-district-council/wolverhampton","Amazon UK Marketplace","2.93","EIP Locality 8","5942","Equipment - Purchase","01/05/2018"
"Wolverhampton City Council","http://opendatacommunities.org/id/metropolitan-district-council/wolverhampton","SANDWELL COLLEGE","50.00","LAC Transitions Team","8220","Client Allowances","01/05/2018"
"Wolverhampton City Council","http://opendatacommunities.org/id/metropolitan-district-council/wolverhampton","N/A VT APPLICATION","200.00","Headstart Phase 3","7399","Room Hire","01/05/2018"
"Wolverhampton City Council","http://opendatacommunities.org/id/metropolitan-district-council/wolverhampton","Amazon UK Marketplace","31.55","Headstart - Young People Engagement","5942","Materials","01/05/2018"
"Wolverhampton City Council","http://opendatacommunities.org/id/metropolitan-district-council/wolverhampton","NAMESCO","2.99","Communications & Marketing - General","4816","Computing - Purchase of Software","01/05/2018"
"Wolverhampton City Council","http://opendatacommunities.org/id/metropolitan-district-council/wolverhampton","NAMESCO","24.98","City Direct","4816","Computing - Purchase of Software","01/05/2018"
"Wolverhampton City Council","http://opendatacommunities.org/id/metropolitan-district-council/wolverhampton","PAYPAL  NETERI LTD","9.88","City Direct","7372","Computing - Purchase of Software","01/05/2018"
"Wolverhampton City Council","http://opendatacommunities.org/id/metropolitan-district-council/wolverhampton","BAKER ROSS LTD","51.45","Education And Access","5970","Materials","01/05/2018"
"Wolverhampton City Council","http://opendatacommunities.org/id/metropolitan-district-council/wolverhampton","Trainline","75.50","GEN Y City Transnational","4112","Public Transport","01/05/2018"
"Wolverhampton City Council","http://opendatacommunities.org/id/metropolitan-district-council/wolverhampton","NATWEST BANK","45.00","EIP Locality 2","6011","Client Transport","01/05/2018"
"Wolverhampton City Council","http://opendatacommunities.org/id/metropolitan-district-council/wolverhampton","Trainline","81.30","GEN Y City Transnational","4112","Public Transport","01/05/2018"
"Wolverhampton City Council","http://opendatacommunities.org/id/metropolitan-district-council/wolverhampton","FACEBK 9WPKCG2BR2","33.25","Communications & Marketing - General","7311","Marketing \ Non-staff advertising","01/05/2018"
"Wolverhampton City Council","http://opendatacommunities.org/id/metropolitan-district-council/wolverhampton","FACEBK BWPKCG2BR2","20.42","Communications & Marketing - General","7311","Marketing \ Non-staff advertising","01/05/2018"
"Wolverhampton City Council","http://opendatacommunities.org/id/metropolitan-district-council/wolverhampton","FACEBK GL4PCESA82","31.95","WV Active Marketing","7311","Marketing \ Non-staff advertising","01/05/2018"
"Wolverhampton City Council","http://opendatacommunities.org/id/metropolitan-district-council/wolverhampton","FACEBK FL4PCESA82","18.05","WV Active Marketing","7311","Marketing \ Non-staff advertising","01/05/2018"
"Wolverhampton City Council","http://opendatacommunities.org/id/metropolitan-district-council/wolverhampton","WWW.MDNSUPPLIES.CO.UK","61.87","Delivery & OCE Development","5085","Equipment - Purchase","01/05/2018"
"Wolverhampton City Council","http://opendatacommunities.org/id/metropolitan-district-council/wolverhampton","Trainline","47.30","LAC Transitions Team","4112","Client Allowances","01/05/2018"
"Wolverhampton City Council","http://opendatacommunities.org/id/metropolitan-district-council/wolverhampton","ASDA GROCERIES ONLINE","-3.68","Upper Pendeford Farm Childrens Home","5411","Provisions (Not for resale)","01/05/2018"
"Wolverhampton City Council","http://opendatacommunities.org/id/metropolitan-district-council/wolverhampton","ASDA GROCERIES ONLINE","-0.98","Upper Pendeford Farm Childrens Home","5411","Provisions (Not for resale)","01/05/2018"
"Wolverhampton City Council","http://opendatacommunities.org/id/metropolitan-district-council/wolverhampton","ASDA GROCERIES ONLINE","270.94","Upper Pendeford Farm Childrens Home","5411","Provisions (Not for resale)","01/05/2018"
"Wolverhampton City Council","http://opendatacommunities.org/id/metropolitan-district-council/wolverhampton","Cross Country Trains","7.80","Head of Strategic Commissioning � People","4112","Public Transport","01/05/2018"
"Wolverhampton City Council","http://opendatacommunities.org/id/metropolitan-district-council/wolverhampton","WWW.WYCHBEARINGS.CO.UK","24.00","Blakenhall Commty & Healthy Living Ctr","7399","Equipment - Purchase","01/05/2018"
"Wolverhampton City Council","http://opendatacommunities.org/id/metropolitan-district-council/wolverhampton","AMZ UK Digital Dwnload","457.32","Landscape","5735","Computing - Purchase of Software","01/05/2018"
"Wolverhampton City Council","http://opendatacommunities.org/id/metropolitan-district-council/wolverhampton","E01577600000000","100.00","EIP Locality 3","6011","Grant Payments","01/05/2018"
"Wolverhampton City Council","http://opendatacommunities.org/id/metropolitan-district-council/wolverhampton","ASDA GROCERIES ONLINE","-2.34","Ernest Bold Court","5411","Provisions (Not for resale)","01/05/2018"
"Wolverhampton City Council","http://opendatacommunities.org/id/metropolitan-district-council/wolverhampton","ASDA GROCERIES ONLINE","73.15","Ernest Bold Court","5411","Provisions (Not for resale)","01/05/2018"
"Wolverhampton City Council","http://opendatacommunities.org/id/metropolitan-district-council/wolverhampton","LIDDELL ELECTRICAL DIS","33.60","Car Parks Operational Staff","5065","Equipment - Purchase","01/05/2018"
"Wolverhampton City Council","http://opendatacommunities.org/id/metropolitan-district-council/wolverhampton","REGISTRARS OFFICE","11.00","CIN/CP Social Work Unit - Area 7","8299","Section 17","01/05/2018"
"Wolverhampton City Council","http://opendatacommunities.org/id/metropolitan-district-council/wolverhampton","Trainline","-87.50","Inclusion Support","4112","Public Transport","01/05/2018"
"Wolverhampton City Council","http://opendatacommunities.org/id/metropolitan-district-council/wolverhampton","WWW.BLACKWELL.CO.UK","47.98","Inclusion Support","5943","Stationery","01/05/2018"
"Wolverhampton City Council","http://opendatacommunities.org/id/metropolitan-district-council/wolverhampton","Trainline","87.50","Inclusion Support","4112","Public Transport","01/05/2018"
"Wolverhampton City Council","http://opendatacommunities.org/id/metropolitan-district-council/wolverhampton","Trainline","87.50","Inclusion Support","4112","Public Transport","01/05/2018"
"Wolverhampton City Council","http://opendatacommunities.org/id/metropolitan-district-council/wolverhampton","NCE COMPUTER GROUP","352.50","Strategic ICTS (ICT Serv Budget)","7372","Computing - Purchase of Hardware","01/05/2018"
